Workbook

Sheet RESUMO GERAL
A1: PLANILHA - RESUMO TOTAL
A2: LICITAÇÃO CODEVASF
A3: Item | B3: Posto | C3: VALOR UNITÁRIO POR EMPREGADO (A) | D3: QUANTIDADE DE EMPREGADOS (B) | E3: Valor Mensal do serviço ( C )= ( A x B ) | F3: Valor Anual dos serviços ( d )= ( C x 12)
A4: 1 | B4: ENCARREGADO DE LIMPEZA | C4: ='Encarregado de Limpeza'!D131 -> 0 | D4: 1 | E4: =C4*D4 -> 0 | F4: =E4*12 -> 0
A5: 2 | B5: SERVENTE | C5: =Servente!D131 -> 0 | D5: 20 | E5: =C5*D5 -> 0 | F5: =E5*12 -> 0
A6: 3 | B6: COPEIRA | C6: =Copeira!D131 -> 0 | D6: 4 | E6: 0 | F6: 0
A7: 4 | B7: GARÇOM | C7: =GARÇOM!D131 -> 0 | D7: 2 | E7: =C7*D7 -> 0 | F7: =E7*12 -> 0
A8: 5 | B8: JARDINEIRO | C8: =Jardineiro!D131 -> 0 | D8: 1 | E8: 0 | F8: 0
A9: 6 | B9: AUXILIAR DE JARDINAGEM | C9: ='Auxiliar de Jardinagem'!D131 -> 0 | D9: 1 | E9: 0 | F9: 0
A10: 7 | B10: RECEPCIONISTA | C10: =RECEPCIONISTA!D131 -> 0 | D10: 1 | E10: 0 | F10: 0
A11: VALOR TOTAL DOS SERVIÇOS | E11: =SUM(E4:E10) -> 0 | F11: =SUM(F4:F10) -> 0
A12: VALOR TOTAL DO ITEM | F12: =F11 -> 0

Sheet Encarregado de Limpeza
A1: PLANILHA DE CUSTOS E FORMAÇÃO DE PREÇOS
A2: CODEVASF - REPACTUAÇÃO 2022 + REAJUSTE DOS INSUMOS
A3: PLANILHA DE CUSTOS E FORMAÇÃO DE PREÇOS - CODEVASF
A4: A | B4: Data | D4: 2024-04-23
A5: B | B5: Município/UF | D5: Brasília/DF
A6: C | B6: Ano de acordo coletivo, convenção coletiva ou sentença normativa em dissídio coletico | D6: 2024
A7: D | B7: Número de meses de execução contratral | D7: 12
A9: 1 | B9: Tipo e serviço (mesmo serviço com características distintas) | C9: Unid. Medida | D9: Quantidade de Funcionários
A10: 1.1 | B10: ENCARREGADO DE LIMPEZA | C10: Posto | D10: 1
A12: Dados complementares para composição dos custos referente á mão-de-obra
A14: 1 | B14: Tipo de serviços (mesmo serviço com características distintas) | D14: ENCARREGADO DE LIMPEZA
A15: 2 | B15: Classificação Brasileira de Ocupações ( CBO ) | D15: 4110
A16: 3 | B16: Salário normativo da categoria profissional
A17: 4 | B17: Categoria profissional (vinculada à execução contratual) | D17: ENCARREGADO DE LIMPEZA
A18: 5 | B18: Data base da categoria (dia/mês/ano) - SINDISERVIÇOS DF000012/2024
A20: Módulo 1: Composição da Remuneração
A21: MÓDULO1 | B21: Composição da Remuneração | C21: % | D21: R$
A22: A | B22: Salário Base | D22: =D16+(C22*D16) -> 0
A23: B | B23: Adicional de periculosidade | D23: =D22*C23 -> 0
A24: C | B24: Adicional de Insalubridade | D24: =D22*C24 -> 0
A25: D | B25: Adicional noturno | D25: 0
A26: E | B26: Adicional de hora noturna reduzida | D26: 0
A27: F | B27: Intervalo Intrajornada | D27: =(D22+D23)*C27 -> 0
A28: H | B28: Outros (Especificar) | D28: 0
A29: I | B29: Total de Remuneração | D29: =SUM(D22:D28) -> 0
A31: MÓDULO 2 | B31: ENCARGOS SOCIAIS E TRABALHISTAS
A32: Submódulo 2.1 - 13º (Décimo Terceiro) Salário, Férias e Adicional de Férias
A33: Submódulo 2.1 | B33: 13º Salário, Férias e Adicional de Férias | C33: % | D33: R$
A34: A | B34: 13º (Décimo Terceiro) Salário | D34: =C34*D22 -> 0
A35: B | B35: Adicional de férias | D35: =C35*D29 -> 0
B36: TOTAL | C36: =SUM(C34:C35) -> 0 | D36: =SUM(D34:D35) -> 0
A37: c | B37: INCIDÊNCIA -SUBMODULO 2.2 SOBRE O SUBMODULO 2.1 - conforme IN 05/2017 | C37: =C36*C51 -> 0 | D37: =C37*D29 -> 0
B38: Total do Submodulo 2 | C38: =C36+C37 -> 0 | D38: =D36+D37 -> 0
A40: Submódulo 2.2 | B40: Encargos Previdenciários(GPS), Fundo de Garantia por tempo de Serviço(FGTS) e outras contribuições
A41: Submódulo 2,2 - Encargos previdenciários e FGTS
A42: 2.2 | B42: GPS, FGTS e Outras Contribuições | C42: % | D42: R$
A43: A | B43: INSS | D43: =C43*(D29) -> 0
A44: B | B44: Salário Educação | D44: =C44*(D29) -> 0
A45: C | B45: Seguro Acidente de Trabalho (Corrigido conforme FAP e GEFIP em anexo ) | D45: =C45*(D29) -> 0
A46: D | B46: SESI ou SESC | D46: =C46*(D29) -> 0
A47: E | B47: SANAI / SENAC | D47: =C47*(D29) -> 0
A48: F | B48: SEBRAE | D48: =C48*(D29) -> 0
A49: G | B49: INCRA | D49: =C49*(D29) -> 0
A50: H | B50: FGTS | D50: =C50*(D29) -> 0
A51: Total | C51: =SUM(C43:C50) -> 0 | D51: =SUM(D43:D50) -> 0
A53: Submódulo 2.3 - Benefícios Mensais e Diários
A54: Sumódulo 2.3 | B54: Benefícios Mensais e Diários | C54: % | D54: R$
A55: A | B55: Transporte
B56: Dedução legal de 6% sobre o salário | D56: =-6%*D22 -> 0
A57: B | B57: Auxilio Alimentação
A58: C | B58: Plano de Saúde
A59: D | B59: Assistência odontológica
A60: E | B60: Auxilio funeral/Seguro de vida
A61: Total | D61: =SUM(D55:D60) -> 0
A63: Quadro- Resumo do Módulo 2 - Encargos e Benefícios Anuais, Mensais e Diários
A64: 2 | B64: Encargos e Beneficios Anuais, Mensais e Dários | C64: % | D64: R$
A65: 2.1 | B65: 13º (décimo terceiro) salário, férias e adicional de férias | C65: =C38 -> 0 | D65: =D38 -> 0
A66: 2.2 | B66: GPS, FGTS e outras contribuições | C66: =C51 -> 0 | D66: =D51 -> 0
A67: 2.3 | B67: Beneficios Mensais e diários | D67: =D61 -> 0
A68: Total | C68: =SUM(C65:C66) -> 0 | D68: =SUM(D65:D67) -> 0
A70: Módulo 3 - Provisões para Rescisão
A71: MÓDULO 3 | B71: Provisões para Rescisão | C71: % | D71: R$
A72: A | B72: Aviso Prévio Indenizado | D72: =C72*D29 -> 0
A73: B | B73: Incidência do FGTS sobre Aviso Prévio Indenizaso | D73: =C73*D29 -> 0
A74: C | B74: Multa do FGTS do Aviso Prévio Indenizado | D74: =C74*D29 -> 0
A75: D | B75: Aviso Prévio Trabalhado | D75: =C75*D29 -> 0
A76: E | B76: Incidencia do submódulo 4.1 sobre aviso prévio trabalhado | D76: =C76*D29 -> 0
A77: F | B77: Multa do FGTS do aviso prévio trabalhado | D77: =C77*D29 -> 0
A78: Total | C78: =SUM(C72:C77) -> 0 | D78: =SUM(D72:D77) -> 0
A80: MÓDULO 4 | B80: Custo de Reposição do Profissional Ausente
A81: Submódulo 4.1 | B81: Ausências Legais | C81: % | D81: R$
A82: A | B82: Férias | D82: =ROUND(C82*D$29,2) -> 0
A83: B | B83: Ausências Legais | D83: 0
A84: C | B84: Licença paternidade | D84: 0
A85: D | B85: Ausências por acidente de trabalho | D85: 0
A86: E | B86: Afastamento Maternidade | D86: 0
A87: F | B87: Outros (Especificar) | D87: 0
A88: Subtotal | C88: =SUM(C82:C87) -> 0 | D88: =SUM(D82:D87) -> 0
A89: G | B89: Incidencia do modulo 2.2 sobre o custo de reposição | C89: =C88*C51 -> 0 | D89: =C89*D29 -> 0
B90: TOTAL | C90: =SUM(C88:C89) -> 0 | D90: =SUM(D88:D89) -> 0
A92: Submódulo 4.2 - Intrajornada
A93: Submódulo 4.2 | B93: Intrajornada | D93: R$
A94: A | B94: Intervalo para repouso ou alimentação | D94: 0
A95: Total | D95: =D94 -> 0
A97: Quadro-Resumo do Módulo 4 - Custo de Reposição do Profissional Ausente
A98: 4.1 | B98: Encargos e Beneficios Anuais, Mensais e Diários | D98: R$
A99: 4.1 | B99: Ausencias Legais | D99: =D90 -> 0
A100: 4.2 | B100: Intrajornada | D100: =D95 -> 0
A101: Total | D101: =D99+D100 -> 0
A103: Módulo 5 - Insumos Diversos
A104: MÓDULO 5 | B104: Insumos Diversos | C104: IPCA/% | D104: R$
A105: A | B105: Uniformes | E105: 73.98
A106: B | B106: Materiais | D106: 0
A107: C | B107: EQUIPAMENTOS
A108: D | B108: Outros ( Especificar
A109: Total | D109: =SUM(D105:D107) -> 0
B110: SUBTOTAL | D110: =D109+D101+D78+D68+D29 -> 0
A111: Módulo 6: Custos Indiretos, Tributos e Lucro
A112: MÓDULO 6 | B112: Custos Indiretos, Tributos e Lucro | C112: % | D112: R$
A113: A | B113: Custos Indiretos | D113: =D110*C113 -> 0
A114: B | B114: Lucro | D114: =(D110+D113)*C114 -> 0 | E114: ='RESUMO GERAL'!F11 -> 0
A115: C | B115: Tributos | D115: =(D110+D113+D114)/(100%-C115)*C115 -> 0
A116: C1 | B116: PIS | D116: =D130*C116 -> 0
A117: C2 | B117: COFINS | D117: =D130*C117 -> 0
A118: C3 | B118: ISS | D118: =D130*C118 -> 0
A119: Total | D119: =D113+D115+D114 -> 0
A121: 2. QUADRO-RESUMO DO CUSTO POR EMPREGADO
A122: Mão de obra vinculada à execução contratual (valor por empregado) | D122: R$
A123: A | B123: Módulo 1 - Composição da Remuneração | D123: =D29 -> 0
A124: B | B124: Módulo 2 - Encargos e Beneficios Anuais, Mensais e Diários | D124: =D68 -> 0
A125: C | B125: Módulo 3 -Provisão para Rescisão | D125: =D78 -> 0
A126: D | B126: Módulo 4 - Custo de Reposição do Profissional Ausente | D126: =D101 -> 0
A127: E | B127: Módulo 5- Insumos Diversos | D127: =D109 -> 0
A128: Subtotal (A+B+C+D+E) | D128: =SUM(D123:D127) -> 0
A129: E | B129: Módulo 5 - Custos Indiretos, Tributos e Lucro | D129: =D119 -> 0
A130: Valor Total por EMPREGADO | D130: =(D128+D113+D114)/(1-C115) -> 0
A131: Valor Total por Posto | D131: =D130 -> 0

Sheet Servente
A1: PLANILHA DE CUSTOS E FORMAÇÃO DE PREÇOS
A2: CODEVASF - REPACTUAÇÃO 2022 + REAJUSTE DOS INSUMOS
A3: PLANILHA DE CUSTOS E FORMAÇÃO DE PREÇOS - CODEVASF
A4: A | B4: Data | D4: 2024-04-23
A5: B | B5: Município/UF | D5: Brasília/DF
A6: C | B6: Ano de acordo coletivo, convenção coletiva ou sentença normativa em dissídio coletico | D6: 2024
A7: D | B7: Número de meses de execução contratral | D7: 12
A9: 1 | B9: Tipo e serviço (mesmo serviço com características distintas) | C9: Unid. Medida | D9: Quantidade de Funcionários
A10: 1.1 | B10: SERVENTE | C10: Posto | D10: 1
A12: Dados complementares para composição dos custos referente á mão-de-obra
A14: 1 | B14: Tipo de serviços (mesmo serviço com características distintas) | D14: SERVENTE
A15: 2 | B15: Classificação Brasileira de Ocupações ( CBO ) | D15: 4110
A16: 3 | B16: Salário normativo da categoria profissional
A17: 4 | B17: Categoria profissional (vinculada à execução contratual) | D17: SERVENTE
A18: 5 | B18: Data base da categoria (dia/mês/ano) - SINDISERVIÇOS DF000012/2024 | D18: 2024-01-01
A20: Módulo 1: Composição da Remuneração
A21: MÓDULO1 | B21: Composição da Remuneração | C21: % | D21: R$
A22: A | B22: Salário Base | D22: =D16+(C22*D16) -> 0
A23: B | B23: Adicional de periculosidade | D23: =D22*C23 -> 0
A24: C | B24: Adicional de Insalubridade | D24: =D22*C24 -> 0
A25: D | B25: Adicional noturno | D25: 0
A26: E | B26: Adicional de hora noturna reduzida | D26: 0
A27: F | B27: Intervalo Intrajornada | D27: =(D22+D23)*C27 -> 0
A28: H | B28: Outros (Especificar) | D28: 0
A29: I | B29: Total de Remuneração | D29: =SUM(D22:D28) -> 0
A31: MÓDULO 2 | B31: ENCARGOS SOCIAIS E TRABALHISTAS
A32: Submódulo 2.1 - 13º (Décimo Terceiro) Salário, Férias e Adicional de Férias
A33: Submódulo 2.1 | B33: 13º Salário, Férias e Adicional de Férias | C33: % | D33: R$
A34: A | B34: 13º (Décimo Terceiro) Salário | D34: =C34*D22 -> 0
A35: B | B35: Adicional de férias | D35: =C35*D29 -> 0
B36: TOTAL | C36: =SUM(C34:C35) -> 0 | D36: =SUM(D34:D35) -> 0
A37: c | B37: INCIDÊNCIA -SUBMODULO 2.2 SOBRE O SUBMODULO 2.1 - conforme IN 05/2017 | C37: =C36*C51 -> 0 | D37: =C37*D29 -> 0
B38: Total do Submodulo 2 | C38: =C36+C37 -> 0 | D38: =D36+D37 -> 0
A40: Submódulo 2.2 | B40: Encargos Previdenciários(GPS), Fundo de Garantia por tempo de Serviço(FGTS) e outras contribuições
A41: Submódulo 2,2 - Encargos previdenciários e FGTS
A42: 2.2 | B42: GPS, FGTS e Outras Contribuições | C42: % | D42: R$
A43: A | B43: INSS | D43: =C43*(D29) -> 0
A44: B | B44: Salário Educação | D44: =C44*(D29) -> 0
A45: C | B45: Seguro Acidente de Trabalho (Corrigido conforme FAP e GEFIP em anexo ) | D45: =C45*(D29) -> 0
A46: D | B46: SESI ou SESC | D46: =C46*(D29) -> 0
A47: E | B47: SANAI / SENAC | D47: =C47*(D29) -> 0
A48: F | B48: SEBRAE | D48: =C48*(D29) -> 0
A49: G | B49: INCRA | D49: =C49*(D29) -> 0
A50: H | B50: FGTS | D50: =C50*(D29) -> 0
A51: Total | C51: =SUM(C43:C50) -> 0 | D51: =SUM(D43:D50) -> 0
A53: Submódulo 2.3 - Benefícios Mensais e Diários
A54: Sumódulo 2.3 | B54: Benefícios Mensais e Diários | C54: % | D54: R$
A55: A | B55: Transporte
B56: Dedução legal de 6% sobre o salário | D56: =-6%*D22 -> 0
A57: B | B57: Auxilio Alimentação
A58: C | B58: Plano de Saúde
A59: D | B59: Assistência odontológica
A60: E | B60: Auxilio funeral/Seguro de vida
A61: Total | D61: =SUM(D55:D60) -> 0
A63: Quadro- Resumo do Módulo 2 - Encargos e Benefícios Anuais, Mensais e Diários
A64: 2 | B64: Encargos e Beneficios Anuais, Mensais e Dários | C64: % | D64: R$
A65: 2.1 | B65: 13º (décimo terceiro) salário, férias e adicional de férias | D65: =D38 -> 0
A66: 2.2 | B66: GPS, FGTS e outras contribuições | D66: =D51 -> 0
A67: 2.3 | B67: Beneficios Mensais e diários | D67: =D61 -> 0
A68: Total | C68: =SUM(C65:C66) -> 0 | D68: =SUM(D65:D67) -> 0
A70: Módulo 3 - Provisões para Rescisão
A71: MÓDULO 3 | B71: Provisões para Rescisão | C71: % | D71: R$
A72: A | B72: Aviso Prévio Indenizado | D72: =C72*D29 -> 0
A73: B | B73: Incidência do FGTS sobre Aviso Prévio Indenizaso | D73: =C73*D29 -> 0
A74: C | B74: Multa do FGTS do Aviso Prévio Indenizado | D74: =C74*D29 -> 0
A75: D | B75: Aviso Prévio Trabalhado | D75: =C75*D29 -> 0
A76: E | B76: Incidencia do submódulo 4.1 sobre aviso prévio trabalhado | D76: =C76*D29 -> 0
A77: F | B77: Multa do FGTS do aviso prévio trabalhado | D77: =C77*D29 -> 0
A78: Total | C78: =SUM(C72:C77) -> 0 | D78: =SUM(D72:D77) -> 0
A80: MÓDULO 4 | B80: Custo de Reposição do Profissional Ausente
A81: Submódulo 4.1 | B81: Ausências Legais | C81: % | D81: R$
A82: A | B82: Férias | D82: =ROUND(C82*D$29,2) -> 0
A83: B | B83: Ausências Legais | D83: 0
A84: C | B84: Licença paternidade | D84: 0
A85: D | B85: Ausências por acidente de trabalho | D85: 0
A86: E | B86: Afastamento Maternidade | D86: 0
A87: F | B87: Outros (Especificar) | D87: 0
A88: Subtotal | C88: =SUM(C82:C87) -> 0 | D88: =SUM(D82:D87) -> 0
A89: G | B89: Incidencia do modulo 2.2 sobre o custo de reposição | C89: =C88*C51 -> 0 | D89: =C89*D29 -> 0
B90: TOTAL | C90: =SUM(C88:C89) -> 0 | D90: =SUM(D88:D89) -> 0
A92: Submódulo 4.2 - Intrajornada
A93: Submódulo 4.2 | B93: Intrajornada | D93: R$
A94: A | B94: Intervalo para repouso ou alimentação | D94: 0
A95: Total | D95: =D94 -> 0
A97: Quadro-Resumo do Módulo 4 - Custo de Reposição do Profissional Ausente
A98: 4.1 | B98: Encargos e Beneficios Anuais, Mensais e Diários | D98: R$
A99: 4.1 | B99: Ausencias Legais | D99: =D90 -> 0
A100: 4.2 | B100: Intrajornada | D100: =D95 -> 0
A101: Total | D101: =D99+D100 -> 0
A103: Módulo 5 - Insumos Diversos
A104: MÓDULO 5 | B104: Insumos Diversos | C104: IPCA/% | D104: R$
A105: A | B105: Uniformes | E105: 51.41
A106: B | B106: Materiais | E106: 713.42
A107: C | B107: EQUIPAMENTOS | E107: 11.29
A108: D | B108: Outros ( Especificar | E108: 4.69
A109: Total | D109: =SUM(D105:D108) -> 0
B110: SUBTOTAL | D110: =D109+D101+D78+D68+D29 -> 0
A111: Módulo 6: Custos Indiretos, Tributos e Lucro
A112: MÓDULO 6 | B112: Custos Indiretos, Tributos e Lucro | C112: % | D112: R$
A113: A | B113: Custos Indiretos | D113: =D110*C113 -> 0
A114: B | B114: Lucro | D114: =(D110+D113)*C114 -> 0
A115: C | B115: Tributos | D115: =(D110+D113+D114)/(100%-C115)*C115 -> 0
A116: C1 | B116: PIS | D116: =D130*C116 -> 0
A117: C2 | B117: COFINS | D117: =D130*C117 -> 0
A118: C3 | B118: ISS | D118: =D130*C118 -> 0
A119: Total | D119: =D113+D115+D114 -> 0
A121: 2. QUADRO-RESUMO DO CUSTO POR EMPREGADO
A122: Mão de obra vinculada à execução contratual (valor por empregado) | D122: R$
A123: A | B123: Módulo 1 - Composição da Remuneração | D123: =D29 -> 0
A124: B | B124: Módulo 2 - Encargos e Beneficios Anuais, Mensais e Diários | D124: =D68 -> 0
A125: C | B125: Módulo 3 -Provisão para Rescisão | D125: =D78 -> 0
A126: D | B126: Módulo 4 - Custo de Reposição do Profissional Ausente | D126: =D101 -> 0
A127: E | B127: Módulo 5- Insumos Diversos | D127: =D109 -> 0
A128: Subtotal (A+B+C+D+E) | D128: =SUM(D123:D127) -> 0
A129: E | B129: Módulo 5 - Custos Indiretos, Tributos e Lucro | D129: =D119 -> 0
A130: Valor Total por EMPREGADO | D130: =(D128+D113+D114)/(1-C115) -> 0
A131: Valor Total por Posto | D131: =D130 -> 0

Sheet Copeira
A1: PLANILHA DE CUSTOS E FORMAÇÃO DE PREÇOS
A2: CODEVASF - REPACTUAÇÃO 2022 + REAJUSTE DOS INSUMOS
A3: PLANILHA DE CUSTOS E FORMAÇÃO DE PREÇOS - CODEVASF
A4: A | B4: Data | D4: 2024-04-23
A5: B | B5: Município/UF | D5: Brasília/DF
A6: C | B6: Ano de acordo coletivo, convenção coletiva ou sentença normativa em dissídio coletico | D6: 2024
A7: D | B7: Número de meses de execução contratral | D7: 12
A9: 1 | B9: Tipo e serviço (mesmo serviço com características distintas) | C9: Unid. Medida | D9: Quantidade de Funcionários
A10: 1.1 | B10: COPEIRA | C10: Posto | D10: 1
A12: Dados complementares para composição dos custos referente á mão-de-obra
A14: 1 | B14: Tipo de serviços (mesmo serviço com características distintas) | D14: COPEIRA
A15: 2 | B15: Classificação Brasileira de Ocupações ( CBO ) | D15: 4110
A16: 3 | B16: Salário normativo da categoria profissional
A17: 4 | B17: Categoria profissional (vinculada à execução contratual) | D17: COPEIRA
A18: 5 | B18: Data base da categoria (dia/mês/ano) - SINDISERVIÇOS DF000012/2024 | D18: 2024-01-01
A20: Módulo 1: Composição da Remuneração
A21: MÓDULO1 | B21: Composição da Remuneração | C21: % | D21: R$
A22: A | B22: Salário Base | D22: =D16+(C22*D16) -> 0
A23: B | B23: Adicional de periculosidade | D23: =D22*C23 -> 0
A24: C | B24: Adicional de Insalubridade | D24: =D22*C24 -> 0
A25: D | B25: Adicional noturno | D25: 0
A26: E | B26: Adicional de hora noturna reduzida | D26: 0
A27: F | B27: Intervalo Intrajornada | D27: =(D22+D23)*C27 -> 0
A28: H | B28: Outros (Especificar) | D28: 0
A29: I | B29: Total de Remuneração | D29: =SUM(D22:D28) -> 0
A31: MÓDULO 2 | B31: ENCARGOS SOCIAIS E TRABALHISTAS
A32: Submódulo 2.1 - 13º (Décimo Terceiro) Salário, Férias e Adicional de Férias
A33: Submódulo 2.1 | B33: 13º Salário, Férias e Adicional de Férias | C33: % | D33: R$
A34: A | B34: 13º (Décimo Terceiro) Salário | D34: =C34*D22 -> 0
A35: B | B35: Adicional de férias | D35: =C35*D29 -> 0
B36: TOTAL | C36: =SUM(C34:C35) -> 0 | D36: =SUM(D34:D35) -> 0
A37: c | B37: INCIDÊNCIA -SUBMODULO 2.2 SOBRE O SUBMODULO 2.1 - conforme IN 05/2017 | C37: =C36*C51 -> 0 | D37: =C37*D29 -> 0
B38: Total do Submodulo 2 | C38: =C36+C37 -> 0 | D38: =D36+D37 -> 0
A40: Submódulo 2.2 | B40: Encargos Previdenciários(GPS), Fundo de Garantia por tempo de Serviço(FGTS) e outras contribuições
A41: Submódulo 2,2 - Encargos previdenciários e FGTS
A42: 2.2 | B42: GPS, FGTS e Outras Contribuições | C42: % | D42: R$
A43: A | B43: INSS | D43: =C43*(D29) -> 0
A44: B | B44: Salário Educação | D44: =C44*(D29) -> 0
A45: C | B45: Seguro Acidente de Trabalho (Corrigido conforme FAP e GEFIP em anexo ) | D45: =C45*(D29) -> 0
A46: D | B46: SESI ou SESC | D46: =C46*(D29) -> 0
A47: E | B47: SANAI / SENAC | D47: =C47*(D29) -> 0
A48: F | B48: SEBRAE | D48: =C48*(D29) -> 0
A49: G | B49: INCRA | D49: =C49*(D29) -> 0
A50: H | B50: FGTS | D50: =C50*(D29) -> 0
A51: Total | C51: =SUM(C43:C50) -> 0 | D51: =SUM(D43:D50) -> 0
A53: Submódulo 2.3 - Benefícios Mensais e Diários
A54: Sumódulo 2.3 | B54: Benefícios Mensais e Diários | C54: % | D54: R$
A55: A | B55: Transporte
B56: Dedução legal de 6% sobre o salário | D56: =-6%*D22 -> 0
A57: B | B57: Auxilio Alimentação
A58: C | B58: Plano de Saúde
A59: D | B59: Assistência odontológica
A60: E | B60: Auxilio funeral/Seguro de vida
A61: Total | D61: =SUM(D55:D60) -> 0
A63: Quadro- Resumo do Módulo 2 - Encargos e Benefícios Anuais, Mensais e Diários
A64: 2 | B64: Encargos e Beneficios Anuais, Mensais e Dários | C64: % | D64: R$
A65: 2.1 | B65: 13º (décimo terceiro) salário, férias e adicional de férias | D65: =D38 -> 0
A66: 2.2 | B66: GPS, FGTS e outras contribuições | D66: =D51 -> 0
A67: 2.3 | B67: Beneficios Mensais e diários | D67: =D61 -> 0
A68: Total | C68: =SUM(C65:C66) -> 0 | D68: =SUM(D65:D67) -> 0
A70: Módulo 3 - Provisões para Rescisão
A71: MÓDULO 3 | B71: Provisões para Rescisão | C71: % | D71: R$
A72: A | B72: Aviso Prévio Indenizado | D72: =C72*D29 -> 0
A73: B | B73: Incidência do FGTS sobre Aviso Prévio Indenizaso | D73: =C73*D29 -> 0
A74: C | B74: Multa do FGTS do Aviso Prévio Indenizado | D74: =C74*D29 -> 0
A75: D | B75: Aviso Prévio Trabalhado | D75: =C75*D29 -> 0
A76: E | B76: Incidencia do submódulo 4.1 sobre aviso prévio trabalhado | D76: =C76*D29 -> 0
A77: F | B77: Multa do FGTS do aviso prévio trabalhado | D77: =C77*D29 -> 0
A78: Total | C78: =SUM(C72:C77) -> 0 | D78: =SUM(D72:D77) -> 0
A80: MÓDULO 4 | B80: Custo de Reposição do Profissional Ausente
A81: Submódulo 4.1 | B81: Ausências Legais | C81: % | D81: R$
A82: A | B82: Férias | D82: =ROUND(C82*D$29,2) -> 0
A83: B | B83: Ausências Legais | D83: 0
A84: C | B84: Licença paternidade | D84: 0
A85: D | B85: Ausências por acidente de trabalho | D85: 0
A86: E | B86: Afastamento Maternidade | D86: 0
A87: F | B87: Outros (Especificar) | C87: 0 | D87: 0
A88: Subtotal | C88: =SUM(C82:C87) -> 0 | D88: =SUM(D82:D87) -> 0
A89: G | B89: Incidencia do modulo 2.2 sobre o custo de reposição | C89: =C88*C51 -> 0 | D89: =C89*D29 -> 0
B90: TOTAL | C90: =SUM(C88:C89) -> 0 | D90: =SUM(D88:D89) -> 0
A92: Submódulo 4.2 - Intrajornada
A93: Submódulo 4.2 | B93: Intrajornada | D93: R$
A94: A | B94: Intervalo para repouso ou alimentação | D94: 0
A95: Total | D95: =D94 -> 0
A97: Quadro-Resumo do Módulo 4 - Custo de Reposição do Profissional Ausente
A98: 4.1 | B98: Encargos e Beneficios Anuais, Mensais e Diários | D98: R$
A99: 4.1 | B99: Ausencias Legais | D99: =D90 -> 0
A100: 4.2 | B100: Intrajornada | D100: =D95 -> 0
A101: Total | D101: =D99+D100 -> 0
A103: Módulo 5 - Insumos Diversos
A104: MÓDULO 5 | B104: Insumos Diversos | C104: IPCA/% | D104: R$
A105: A | B105: Uniformes | E105: 64.91
A106: B | B106: Materiais | E106: 117.81
A107: C | B107: EQUIPAMENTOS
A108: D | B108: Outros ( Especificar
A109: Total | D109: =SUM(D105:D107) -> 0
B110: SUBTOTAL | D110: =D109+D101+D78+D68+D29 -> 0
A111: Módulo 6: Custos Indiretos, Tributos e Lucro
A112: MÓDULO 6 | B112: Custos Indiretos, Tributos e Lucro | C112: % | D112: R$
A113: A | B113: Custos Indiretos | D113: =D110*C113 -> 0
A114: B | B114: Lucro | D114: =(D110+D113)*C114 -> 0
A115: C | B115: Tributos | D115: =(D110+D113+D114)/(100%-C115)*C115 -> 0
A116: C1 | B116: PIS | D116: =D130*C116 -> 0
A117: C2 | B117: COFINS | D117: =D130*C117 -> 0
A118: C3 | B118: ISS | D118: =D130*C118 -> 0
A119: Total | D119: =D113+D115+D114 -> 0
A121: 2. QUADRO-RESUMO DO CUSTO POR EMPREGADO
A122: Mão de obra vinculada à execução contratual (valor por empregado) | D122: R$
A123: A | B123: Módulo 1 - Composição da Remuneração | D123: =D29 -> 0
A124: B | B124: Módulo 2 - Encargos e Beneficios Anuais, Mensais e Diários | D124: =D68 -> 0
A125: C | B125: Módulo 3 -Provisão para Rescisão | D125: =D78 -> 0
A126: D | B126: Módulo 4 - Custo de Reposição do Profissional Ausente | D126: =D101 -> 0
A127: E | B127: Módulo 5- Insumos Diversos | D127: =D109 -> 0
A128: Subtotal (A+B+C+D+E) | D128: =SUM(D123:D127) -> 0
A129: E | B129: Módulo 5 - Custos Indiretos, Tributos e Lucro | D129: =D119 -> 0
A130: Valor Total por EMPREGADO | D130: =(D128+D113+D114)/(1-C115) -> 0
A131: Valor Total por Posto | D131: =D130 -> 0

Sheet GARÇOM
A1: PLANILHA DE CUSTOS E FORMAÇÃO DE PREÇOS
A2: CODEVASF - REPACTUAÇÃO 2022 + REAJUSTE DOS INSUMOS
A3: PLANILHA DE CUSTOS E FORMAÇÃO DE PREÇOS - CODEVASF
A4: A | B4: Data | D4: 2024-04-23
A5: B | B5: Município/UF | D5: Brasília/DF
A6: C | B6: Ano de acordo coletivo, convenção coletiva ou sentença normativa em dissídio coletico | D6: 2024
A7: D | B7: Número de meses de execução contratral | D7: 12
A9: 1 | B9: Tipo e serviço (mesmo serviço com características distintas) | C9: Unid. Medida | D9: Quantidade de Funcionários
A10: 1.1 | B10: GARÇOM | C10: Posto | D10: 1
A12: Dados complementares para composição dos custos referente á mão-de-obra
A14: 1 | B14: Tipo de serviços (mesmo serviço com características distintas) | D14: GARÇOM
A15: 2 | B15: Classificação Brasileira de Ocupações ( CBO ) | D15: 4110
A16: 3 | B16: Salário normativo da categoria profissional
A17: 4 | B17: Categoria profissional (vinculada à execução contratual) | D17: GARÇOM
A18: 5 | B18: Data base da categoria (dia/mês/ano) - SINDISERVIÇOS DF000012/2024 | D18: 2024-01-01
A20: Módulo 1: Composição da Remuneração
A21: MÓDULO1 | B21: Composição da Remuneração | C21: % | D21: R$
A22: A | B22: Salário Base | D22: =D16+(C22*D16) -> 0
A23: B | B23: Adicional de periculosidade | D23: =D22*C23 -> 0
A24: C | B24: Adicional de Insalubridade | D24: =D22*C24 -> 0
A25: D | B25: Adicional noturno | D25: 0
A26: E | B26: Adicional de hora noturna reduzida | D26: 0
A27: F | B27: Intervalo Intrajornada | D27: =(D22+D23)*C27 -> 0
A28: H | B28: Outros (Especificar) | D28: 0
A29: I | B29: Total de Remuneração | D29: =SUM(D22:D28) -> 0
A31: MÓDULO 2 | B31: ENCARGOS SOCIAIS E TRABALHISTAS
A32: Submódulo 2.1 - 13º (Décimo Terceiro) Salário, Férias e Adicional de Férias
A33: Submódulo 2.1 | B33: 13º Salário, Férias e Adicional de Férias | C33: % | D33: R$
A34: A | B34: 13º (Décimo Terceiro) Salário | D34: =C34*D22 -> 0
A35: B | B35: Adicional de férias | D35: =C35*D29 -> 0
B36: TOTAL | C36: =SUM(C34:C35) -> 0 | D36: =SUM(D34:D35) -> 0
A37: c | B37: INCIDÊNCIA -SUBMODULO 2.2 SOBRE O SUBMODULO 2.1 - conforme IN 05/2017 | C37: =C36*C51 -> 0 | D37: =C37*D29 -> 0
B38: Total do Submodulo 2 | C38: =C36+C37 -> 0 | D38: =D36+D37 -> 0
A40: Submódulo 2.2 | B40: Encargos Previdenciários(GPS), Fundo de Garantia por tempo de Serviço(FGTS) e outras contribuições
A41: Submódulo 2,2 - Encargos previdenciários e FGTS
A42: 2.2 | B42: GPS, FGTS e Outras Contribuições | C42: % | D42: R$
A43: A | B43: INSS | D43: =C43*(D29) -> 0
A44: B | B44: Salário Educação | D44: =C44*(D29) -> 0
A45: C | B45: Seguro Acidente de Trabalho (Corrigido conforme FAP e GEFIP em anexo ) | D45: =C45*(D29) -> 0
A46: D | B46: SESI ou SESC | D46: =C46*(D29) -> 0
A47: E | B47: SANAI / SENAC | D47: =C47*(D29) -> 0
A48: F | B48: SEBRAE | D48: =C48*(D29) -> 0
A49: G | B49: INCRA | D49: =C49*(D29) -> 0
A50: H | B50: FGTS | D50: =C50*(D29) -> 0
A51: Total | C51: =SUM(C43:C50) -> 0 | D51: =SUM(D43:D50) -> 0
A53: Submódulo 2.3 - Benefícios Mensais e Diários
A54: Sumódulo 2.3 | B54: Benefícios Mensais e Diários | C54: % | D54: R$
A55: A | B55: Transporte
B56: Dedução legal de 6% sobre o salário | D56: =-6%*D22 -> 0
A57: B | B57: Auxilio Alimentação
A58: C | B58: Plano de Saúde
A59: D | B59: Assistência odontológica
A60: E | B60: Auxilio funeral/Seguro de vida
A61: Total | D61: =SUM(D55:D60) -> 0
A63: Quadro- Resumo do Módulo 2 - Encargos e Benefícios Anuais, Mensais e Diários
A64: 2 | B64: Encargos e Beneficios Anuais, Mensais e Dários | C64: % | D64: R$
A65: 2.1 | B65: 13º (décimo terceiro) salário, férias e adicional de férias | C65: =C38 -> 0 | D65: =D38 -> 0
A66: 2.2 | B66: GPS, FGTS e outras contribuições | C66: =C51 -> 0 | D66: =D51 -> 0
A67: 2.3 | B67: Beneficios Mensais e diários | D67: =D61 -> 0
A68: Total | C68: =SUM(C65:C66) -> 0 | D68: =SUM(D65:D67) -> 0
A70: Módulo 3 - Provisões para Rescisão
A71: MÓDULO 3 | B71: Provisões para Rescisão | C71: % | D71: R$
A72: A | B72: Aviso Prévio Indenizado | D72: =C72*D29 -> 0
A73: B | B73: Incidência do FGTS sobre Aviso Prévio Indenizaso | D73: =C73*D29 -> 0
A74: C | B74: Multa do FGTS do Aviso Prévio Indenizado | D74: =C74*D29 -> 0
A75: D | B75: Aviso Prévio Trabalhado | D75: =C75*D29 -> 0
A76: E | B76: Incidencia do submódulo 4.1 sobre aviso prévio trabalhado | D76: =C76*D29 -> 0
A77: F | B77: Multa do FGTS do aviso prévio trabalhado | D77: =C77*D29 -> 0
A78: Total | C78: =SUM(C72:C77) -> 0 | D78: =SUM(D72:D77) -> 0
A80: MÓDULO 4 | B80: Custo de Reposição do Profissional Ausente
A81: Submódulo 4.1 | B81: Ausências Legais | C81: % | D81: R$
A82: A | B82: Férias | D82: =ROUND(C82*D$29,2) -> 0
A83: B | B83: Ausências Legais | D83: 0
A84: C | B84: Licença paternidade | D84: 0
A85: D | B85: Ausências por acidente de trabalho | D85: 0
A86: E | B86: Afastamento Maternidade | D86: 0
A87: F | B87: Outros (Especificar) | D87: 0
A88: Subtotal | C88: =SUM(C82:C87) -> 0 | D88: =SUM(D82:D87) -> 0
A89: G | B89: Incidencia do modulo 2.2 sobre o custo de reposição | C89: =C88*C51 -> 0 | D89: =C89*D29 -> 0
B90: TOTAL | C90: =SUM(C88:C89) -> 0 | D90: =SUM(D88:D89) -> 0
A92: Submódulo 4.2 - Intrajornada
A93: Submódulo 4.2 | B93: Intrajornada | D93: R$
A94: A | B94: Intervalo para repouso ou alimentação | D94: 0
A95: Total | D95: =D94 -> 0
A97: Quadro-Resumo do Módulo 4 - Custo de Reposição do Profissional Ausente
A98: 4.1 | B98: Encargos e Beneficios Anuais, Mensais e Diários | D98: R$
A99: 4.1 | B99: Ausencias Legais | D99: =D90 -> 0
A100: 4.2 | B100: Intrajornada | D100: =D95 -> 0
A101: Total | D101: =D99+D100 -> 0
A103: Módulo 5 - Insumos Diversos
A104: MÓDULO 5 | B104: Insumos Diversos | C104: IPCA/% | D104: R$
A105: A | B105: Uniformes | E105: 65.35
A106: B | B106: Materiais | D106: =713.42*C106 -> 0
A107: C | B107: EQUIPAMENTOS | D107: =11.29*C107 -> 0
A108: D | B108: Outros ( Especificar ) | D108: =4.69*C108 -> 0
A109: Total | D109: =SUM(D105:D107) -> 0
B110: SUBTOTAL | D110: =D109+D101+D78+D68+D29 -> 0
A111: Módulo 6: Custos Indiretos, Tributos e Lucro
A112: MÓDULO 6 | B112: Custos Indiretos, Tributos e Lucro | C112: % | D112: R$
A113: A | B113: Custos Indiretos | D113: =D110*C113 -> 0
A114: B | B114: Lucro | D114: =(D110+D113)*C114 -> 0
A115: C | B115: Tributos | D115: =(D110+D113+D114)/(100%-C115)*C115 -> 0
A116: C1 | B116: PIS | D116: =D130*C116 -> 0
A117: C2 | B117: COFINS | D117: =D130*C117 -> 0
A118: C3 | B118: ISS | D118: =D130*C118 -> 0
A119: Total | D119: =D113+D115+D114 -> 0
A121: 2. QUADRO-RESUMO DO CUSTO POR EMPREGADO
A122: Mão de obra vinculada à execução contratual (valor por empregado) | D122: R$
A123: A | B123: Módulo 1 - Composição da Remuneração | D123: =D29 -> 0
A124: B | B124: Módulo 2 - Encargos e Beneficios Anuais, Mensais e Diários | D124: =D68 -> 0
A125: C | B125: Módulo 3 -Provisão para Rescisão | D125: =D78 -> 0
A126: D | B126: Módulo 4 - Custo de Reposição do Profissional Ausente | D126: =D101 -> 0
A127: E | B127: Módulo 5- Insumos Diversos | D127: =D109 -> 0
A128: Subtotal (A+B+C+D+E) | D128: =SUM(D123:D127) -> 0
A129: E | B129: Módulo 5 - Custos Indiretos, Tributos e Lucro | D129: =D119 -> 0
A130: Valor Total por EMPREGADO | D130: =(D128+D113+D114)/(1-C115) -> 0
A131: Valor Total por Posto | D131: =D130 -> 0

Sheet Jardineiro
A1: PLANILHA DE CUSTOS E FORMAÇÃO DE PREÇOS
A2: CODEVASF - REPACTUAÇÃO 2022 + REAJUSTE DOS INSUMOS
A3: PLANILHA DE CUSTOS E FORMAÇÃO DE PREÇOS - CODEVASF
A4: A | B4: Data | D4: 2024-04-23
A5: B | B5: Município/UF | D5: Brasília/DF
A6: C | B6: Ano de acordo coletivo, convenção coletiva ou sentença normativa em dissídio coletico | D6: 2024
A7: D | B7: Número de meses de execução contratral | D7: 12
A9: 1 | B9: Tipo e serviço (mesmo serviço com características distintas) | C9: Unid. Medida | D9: Quantidade de Funcionários
A10: 1.1 | B10: BOMBEIRO HIDRÁULICO | C10: Posto | D10: 1
A12: Dados complementares para composição dos custos referente á mão-de-obra
A14: 1 | B14: Tipo de serviços (mesmo serviço com características distintas) | D14: JARDINEIRO
A15: 2 | B15: Classificação Brasileira de Ocupações ( CBO ) | D15: 622010
A16: 3 | B16: Salário normativo da categoria profissional
A17: 4 | B17: Categoria profissional (vinculada à execução contratual) | D17: JARDINEIRO
A18: 5 | B18: Data base da categoria (dia/mês/ano) - SINDISERVIÇOS DF000012/2024 | D18: 2024-01-01
A20: Módulo 1: Composição da Remuneração
A21: MÓDULO1 | B21: Composição da Remuneração | C21: % | D21: R$
A22: A | B22: Salário Base | D22: =D16+(C22*D16) -> 0
A23: B | B23: Adicional de periculosidade | D23: =D22*C23 -> 0
A24: C | B24: Adicional de Insalubridade | D24: =D22*C24 -> 0
A25: D | B25: Adicional noturno | D25: 0
A26: E | B26: Adicional de hora noturna reduzida | D26: 0
A27: F | B27: Intervalo Intrajornada | D27: =(D22+D23)*C27 -> 0
A28: H | B28: Outros (Especificar) | D28: 0
A29: I | B29: Total de Remuneração | D29: =SUM(D22:D28) -> 0
A31: MÓDULO 2 | B31: ENCARGOS SOCIAIS E TRABALHISTAS
A32: Submódulo 2.1 - 13º (Décimo Terceiro) Salário, Férias e Adicional de Férias
A33: Submódulo 2.1 | B33: 13º Salário, Férias e Adicional de Férias | C33: % | D33: R$
A34: A | B34: 13º (Décimo Terceiro) Salário | D34: =C34*D22 -> 0
A35: B | B35: Adicional de férias | D35: =C35*D29 -> 0
B36: TOTAL | C36: =SUM(C34:C35) -> 0 | D36: =SUM(D34:D35) -> 0
A37: c | B37: INCIDÊNCIA -SUBMODULO 2.2 SOBRE O SUBMODULO 2.1 - conforme IN 05/2017 | C37: =C36*C51 -> 0 | D37: =C37*D29 -> 0
B38: Total do Submodulo 2 | C38: =C36+C37 -> 0 | D38: =D36+D37 -> 0
A40: Submódulo 2.2 | B40: Encargos Previdenciários(GPS), Fundo de Garantia por tempo de Serviço(FGTS) e outras contribuições
A41: Submódulo 2,2 - Encargos previdenciários e FGTS
A42: 2.2 | B42: GPS, FGTS e Outras Contribuições | C42: % | D42: R$
A43: A | B43: INSS | D43: =C43*(D29) -> 0
A44: B | B44: Salário Educação | D44: =C44*(D29) -> 0
A45: C | B45: Seguro Acidente de Trabalho (Corrigido conforme FAP e GEFIP em anexo ) | D45: =C45*(D29) -> 0
A46: D | B46: SESI ou SESC | D46: =C46*(D29) -> 0
A47: E | B47: SANAI / SENAC | D47: =C47*(D29) -> 0
A48: F | B48: SEBRAE | D48: =C48*(D29) -> 0
A49: G | B49: INCRA | D49: =C49*(D29) -> 0
A50: H | B50: FGTS | D50: =C50*(D29) -> 0
A51: Total | C51: =SUM(C43:C50) -> 0 | D51: =SUM(D43:D50) -> 0
A53: Submódulo 2.3 - Benefícios Mensais e Diários
A54: Sumódulo 2.3 | B54: Benefícios Mensais e Diários | C54: % | D54: R$
A55: A | B55: Transporte
B56: Dedução legal de 6% sobre o salário | D56: =-6%*D22 -> 0
A57: B | B57: Auxilio Alimentação
A58: C | B58: Plano de Saúde
A59: D | B59: Assistência odontológica
A60: E | B60: Auxilio funeral/Seguro de vida
A61: Total | D61: =SUM(D55:D60) -> 0
A63: Quadro- Resumo do Módulo 2 - Encargos e Benefícios Anuais, Mensais e Diários
A64: 2 | B64: Encargos e Beneficios Anuais, Mensais e Dários | C64: % | D64: R$
A65: 2.1 | B65: 13º (décimo terceiro) salário, férias e adicional de férias | C65: =C38 -> 0 | D65: =D38 -> 0
A66: 2.2 | B66: GPS, FGTS e outras contribuições | C66: =C51 -> 0 | D66: =D51 -> 0
A67: 2.3 | B67: Beneficios Mensais e diários | D67: =D61 -> 0
A68: Total | C68: =SUM(C65:C66) -> 0 | D68: =SUM(D65:D67) -> 0
A70: Módulo 3 - Provisões para Rescisão
A71: MÓDULO 3 | B71: Provisões para Rescisão | C71: % | D71: R$
A72: A | B72: Aviso Prévio Indenizado | D72: =C72*D29 -> 0
A73: B | B73: Incidência do FGTS sobre Aviso Prévio Indenizaso | D73: =C73*D29 -> 0
A74: C | B74: Multa do FGTS do Aviso Prévio Indenizado | D74: =C74*D29 -> 0
A75: D | B75: Aviso Prévio Trabalhado | D75: =C75*D29 -> 0
A76: E | B76: Incidencia do submódulo 4.1 sobre aviso prévio trabalhado | D76: =C76*D29 -> 0
A77: F | B77: Multa do FGTS do aviso prévio trabalhado | D77: =C77*D29 -> 0
A78: Total | C78: =SUM(C72:C77) -> 0 | D78: =SUM(D72:D77) -> 0
A80: MÓDULO 4 | B80: Custo de Reposição do Profissional Ausente
A81: Submódulo 4.1 | B81: Ausências Legais | C81: % | D81: R$
A82: A | B82: Férias | D82: =ROUND(C82*D$29,2) -> 0
A83: B | B83: Ausências Legais | D83: 0
A84: C | B84: Licença paternidade | D84: 0
A85: D | B85: Ausências por acidente de trabalho | D85: 0
A86: E | B86: Afastamento Maternidade | D86: 0
A87: F | B87: Outros (Especificar) | C87: 0 | D87: 0
A88: Subtotal | C88: =SUM(C82:C87) -> 0 | D88: =SUM(D82:D87) -> 0
A89: G | B89: Incidencia do modulo 2.2 sobre o custo de reposição | C89: =C88*C51 -> 0 | D89: =C89*D29 -> 0
B90: TOTAL | C90: =SUM(C88:C89) -> 0 | D90: =SUM(D88:D89) -> 0
A92: Submódulo 4.2 - Intrajornada
A93: Submódulo 4.2 | B93: Intrajornada | D93: R$
A94: A | B94: Intervalo para repouso ou alimentação | D94: 0
A95: Total | D95: =D94 -> 0
A97: Quadro-Resumo do Módulo 4 - Custo de Reposição do Profissional Ausente
A98: 4.1 | B98: Encargos e Beneficios Anuais, Mensais e Diários | D98: R$
A99: 4.1 | B99: Ausencias Legais | D99: =D90 -> 0
A100: 4.2 | B100: Intrajornada | D100: =D95 -> 0
A101: Total | D101: =D99+D100 -> 0
A103: Módulo 5 - Insumos Diversos
A104: MÓDULO 5 | B104: Insumos Diversos | C104: IPCA/% | D104: R$
A105: A | B105: Uniformes | E105: 44.73
A106: B | B106: Materiais | E106: 48.34
A107: C | B107: EQUIPAMENTOS | D107: =11.29*C107 -> 0
A108: D | B108: Outros ( Especificar | D108: =4.69*C108 -> 0
A109: Total | D109: =SUM(D105:D107) -> 0
B110: SUBTOTAL | D110: =D109+D101+D78+D68+D29 -> 0
A111: Módulo 6: Custos Indiretos, Tributos e Lucro
A112: MÓDULO 6 | B112: Custos Indiretos, Tributos e Lucro | C112: % | D112: R$
A113: A | B113: Custos Indiretos | D113: =D110*C113 -> 0
A114: B | B114: Lucro | D114: =(D110+D113)*C114 -> 0
A115: C | B115: Tributos | D115: =(D110+D113+D114)/(100%-C115)*C115 -> 0
A116: C1 | B116: PIS | D116: =D130*C116 -> 0
A117: C2 | B117: COFINS | D117: =D130*C117 -> 0
A118: C3 | B118: ISS | D118: =D130*C118 -> 0
A119: Total | D119: =D113+D115+D114 -> 0
A121: 2. QUADRO-RESUMO DO CUSTO POR EMPREGADO
A122: Mão de obra vinculada à execução contratual (valor por empregado) | D122: R$
A123: A | B123: Módulo 1 - Composição da Remuneração | D123: =D29 -> 0
A124: B | B124: Módulo 2 - Encargos e Beneficios Anuais, Mensais e Diários | D124: =D68 -> 0
A125: C | B125: Módulo 3 -Provisão para Rescisão | D125: =D78 -> 0
A126: D | B126: Módulo 4 - Custo de Reposição do Profissional Ausente | D126: =D101 -> 0
A127: E | B127: Módulo 5- Insumos Diversos | D127: =D109 -> 0
A128: Subtotal (A+B+C+D+E) | D128: =SUM(D123:D127) -> 0
A129: E | B129: Módulo 5 - Custos Indiretos, Tributos e Lucro | D129: =D119 -> 0
A130: Valor Total por EMPREGADO | D130: =(D128+D113+D114)/(1-C115) -> 0
A131: Valor Total por Posto | D131: =D130 -> 0

Sheet Auxiliar de Jardinagem
A1: PLANILHA DE CUSTOS E FORMAÇÃO DE PREÇOS
A2: CODEVASF - REPACTUAÇÃO 2022 + REAJUSTE DOS INSUMOS
A3: PLANILHA DE CUSTOS E FORMAÇÃO DE PREÇOS - CODEVASF
A4: A | B4: Data | D4: 2024-04-23
A5: B | B5: Município/UF | D5: Brasília/DF
A6: C | B6: Ano de acordo coletivo, convenção coletiva ou sentença normativa em dissídio coletico | D6: 2024
A7: D | B7: Número de meses de execução contratral | D7: 12
A9: 1 | B9: Tipo e serviço (mesmo serviço com características distintas) | C9: Unid. Medida | D9: Quantidade de Funcionários
A10: 1.1 | B10: MARCENEIRO | C10: Posto | D10: 1
A12: Dados complementares para composição dos custos referente á mão-de-obra
A14: 1 | B14: Tipo de serviços (mesmo serviço com características distintas) | D14: AUXILIAR DE JARDINAGEM
A15: 2 | B15: Classificação Brasileira de Ocupações ( CBO ) | D15: 514320
A16: 3 | B16: Salário normativo da categoria profissional
A17: 4 | B17: Categoria profissional (vinculada à execução contratual) | D17: AUXILIAR DE JARDINAGEM
A18: 5 | B18: Data base da categoria (dia/mês/ano) - SINDISERVIÇOS DF000012/2024 | D18: 2024-01-01
A20: Módulo 1: Composição da Remuneração
A21: MÓDULO1 | B21: Composição da Remuneração | C21: % | D21: R$
A22: A | B22: Salário Base | D22: =D16+(C22*D16) -> 0
A23: B | B23: Adicional de periculosidade | D23: =D22*C23 -> 0
A24: C | B24: Adicional de Insalubridade | D24: =D22*C24 -> 0
A25: D | B25: Adicional noturno | D25: 0
A26: E | B26: Adicional de hora noturna reduzida | D26: 0
A27: F | B27: Intervalo Intrajornada | D27: =(D22+D23)*C27 -> 0
A28: H | B28: Outros (Especificar) | D28: 0
A29: I | B29: Total de Remuneração | D29: =SUM(D22:D28) -> 0
A31: MÓDULO 2 | B31: ENCARGOS SOCIAIS E TRABALHISTAS
A32: Submódulo 2.1 - 13º (Décimo Terceiro) Salário, Férias e Adicional de Férias
A33: Submódulo 2.1 | B33: 13º Salário, Férias e Adicional de Férias | C33: % | D33: R$
A34: A | B34: 13º (Décimo Terceiro) Salário | D34: =C34*D22 -> 0
A35: B | B35: Adicional de férias | D35: =C35*D29 -> 0
B36: TOTAL | C36: =SUM(C34:C35) -> 0 | D36: =SUM(D34:D35) -> 0
A37: c | B37: INCIDÊNCIA -SUBMODULO 2.2 SOBRE O SUBMODULO 2.1 - conforme IN 05/2017 | C37: =C36*C51 -> 0 | D37: =C37*D29 -> 0
B38: Total do Submodulo 2 | C38: =C36+C37 -> 0 | D38: =D36+D37 -> 0
A40: Submódulo 2.2 | B40: Encargos Previdenciários(GPS), Fundo de Garantia por tempo de Serviço(FGTS) e outras contribuições
A41: Submódulo 2,2 - Encargos previdenciários e FGTS
A42: 2.2 | B42: GPS, FGTS e Outras Contribuições | C42: % | D42: R$
A43: A | B43: INSS | D43: =C43*(D29) -> 0
A44: B | B44: Salário Educação | D44: =C44*(D29) -> 0
A45: C | B45: Seguro Acidente de Trabalho (Corrigido conforme FAP e GEFIP em anexo ) | D45: =C45*(D29) -> 0
A46: D | B46: SESI ou SESC | D46: =C46*(D29) -> 0
A47: E | B47: SANAI / SENAC | D47: =C47*(D29) -> 0
A48: F | B48: SEBRAE | D48: =C48*(D29) -> 0
A49: G | B49: INCRA | D49: =C49*(D29) -> 0
A50: H | B50: FGTS | D50: =C50*(D29) -> 0
A51: Total | C51: =SUM(C43:C50) -> 0 | D51: =SUM(D43:D50) -> 0
A53: Submódulo 2.3 - Benefícios Mensais e Diários
A54: Sumódulo 2.3 | B54: Benefícios Mensais e Diários | C54: % | D54: R$
A55: A | B55: Transporte
B56: Dedução legal de 6% sobre o salário | D56: =-6%*D22 -> 0
A57: B | B57: Auxilio Alimentação
A58: C | B58: Plano de Saúde
A59: D | B59: Assistência odontológica
A60: E | B60: Auxilio funeral/Seguro de vida
A61: Total | D61: =SUM(D55:D60) -> 0
A63: Quadro- Resumo do Módulo 2 - Encargos e Benefícios Anuais, Mensais e Diários
A64: 2 | B64: Encargos e Beneficios Anuais, Mensais e Dários | C64: % | D64: R$
A65: 2.1 | B65: 13º (décimo terceiro) salário, férias e adicional de férias | C65: =C38 -> 0 | D65: =D38 -> 0
A66: 2.2 | B66: GPS, FGTS e outras contribuições | C66: =C51 -> 0 | D66: =D51 -> 0
A67: 2.3 | B67: Beneficios Mensais e diários | D67: =D61 -> 0
A68: Total | C68: =SUM(C65:C66) -> 0 | D68: =SUM(D65:D67) -> 0
A70: Módulo 3 - Provisões para Rescisão
A71: MÓDULO 3 | B71: Provisões para Rescisão | C71: % | D71: R$
A72: A | B72: Aviso Prévio Indenizado | D72: =C72*D29 -> 0
A73: B | B73: Incidência do FGTS sobre Aviso Prévio Indenizaso | D73: =C73*D29 -> 0
A74: C | B74: Multa do FGTS do Aviso Prévio Indenizado | D74: =C74*D29 -> 0
A75: D | B75: Aviso Prévio Trabalhado | D75: =C75*D29 -> 0
A76: E | B76: Incidencia do submódulo 4.1 sobre aviso prévio trabalhado | D76: =C76*D29 -> 0
A77: F | B77: Multa do FGTS do aviso prévio trabalhado | D77: =C77*D29 -> 0
A78: Total | C78: =SUM(C72:C77) -> 0 | D78: =SUM(D72:D77) -> 0
A80: MÓDULO 4 | B80: Custo de Reposição do Profissional Ausente
A81: Submódulo 4.1 | B81: Ausências Legais | C81: % | D81: R$
A82: A | B82: Férias | D82: =ROUND(C82*D$29,2) -> 0
A83: B | B83: Ausências Legais | D83: 0
A84: C | B84: Licença paternidade | D84: 0
A85: D | B85: Ausências por acidente de trabalho | D85: 0
A86: E | B86: Afastamento Maternidade | D86: 0
A87: F | B87: Outros (Especificar) | D87: 0
A88: Subtotal | C88: =SUM(C82:C87) -> 0 | D88: =SUM(D82:D87) -> 0
A89: G | B89: Incidencia do modulo 2.2 sobre o custo de reposição | C89: =C88*C51 -> 0 | D89: =C89*D29 -> 0
B90: TOTAL | C90: =SUM(C88:C89) -> 0 | D90: =SUM(D88:D89) -> 0
A92: Submódulo 4.2 - Intrajornada
A93: Submódulo 4.2 | B93: Intrajornada | D93: R$
A94: A | B94: Intervalo para repouso ou alimentação | D94: 0
A95: Total | D95: =D94 -> 0
A97: Quadro-Resumo do Módulo 4 - Custo de Reposição do Profissional Ausente
A98: 4.1 | B98: Encargos e Beneficios Anuais, Mensais e Diários | D98: R$
A99: 4.1 | B99: Ausencias Legais | D99: =D90 -> 0
A100: 4.2 | B100: Intrajornada | D100: =D95 -> 0
A101: Total | D101: =D95 -> 0
A103: Módulo 5 - Insumos Diversos
A104: MÓDULO 5 | B104: Insumos Diversos | C104: IPCA/% | D104: R$
A105: A | B105: Uniformes | E105: 44.73
A106: B | B106: Materiais | E106: 10.9
A107: C | B107: EQUIPAMENTOS | D107: =11.29*C107 -> 0
A108: D | B108: Outros ( Especificar | D108: =4.69*C108 -> 0
A109: Total | D109: =SUM(D105:D107) -> 0
B110: SUBTOTAL | D110: =D109+D101+D78+D68+D29 -> 0
A111: Módulo 6: Custos Indiretos, Tributos e Lucro
A112: MÓDULO 6 | B112: Custos Indiretos, Tributos e Lucro | C112: % | D112: R$
A113: A | B113: Custos Indiretos | D113: =D110*C113 -> 0
A114: B | B114: Lucro | D114: =(D110+D113)*C114 -> 0
A115: C | B115: Tributos | D115: =(D110+D113+D114)/(100%-C115)*C115 -> 0
A116: C1 | B116: PIS | D116: =D130*C116 -> 0
A117: C2 | B117: COFINS | D117: =D130*C117 -> 0
A118: C3 | B118: ISS | D118: =D130*C118 -> 0
A119: Total | D119: =D113+D115+D114 -> 0
A121: 2. QUADRO-RESUMO DO CUSTO POR EMPREGADO
A122: Mão de obra vinculada à execução contratual (valor por empregado) | D122: R$
A123: A | B123: Módulo 1 - Composição da Remuneração | D123: =D29 -> 0
A124: B | B124: Módulo 2 - Encargos e Beneficios Anuais, Mensais e Diários | D124: =D68 -> 0
A125: C | B125: Módulo 3 -Provisão para Rescisão | D125: =D78 -> 0
A126: D | B126: Módulo 4 - Custo de Reposição do Profissional Ausente | D126: =D101 -> 0
A127: E | B127: Módulo 5- Insumos Diversos | D127: =D109 -> 0
A128: Subtotal (A+B+C+D+E) | D128: =SUM(D123:D127) -> 0
A129: E | B129: Módulo 5 - Custos Indiretos, Tributos e Lucro | D129: =D119 -> 0
A130: Valor Total por EMPREGADO | D130: =(D128+D113+D114)/(1-C115) -> 0
A131: Valor Total por Posto | D131: =D130 -> 0

Sheet RECEPCIONISTA
A1: PLANILHA DE CUSTOS E FORMAÇÃO DE PREÇOS
A2: CODEVASF - REPACTUAÇÃO 2022 + REAJUSTE DOS INSUMOS
A3: PLANILHA DE CUSTOS E FORMAÇÃO DE PREÇOS - CODEVASF
A4: A | B4: Data | D4: 2024-04-23
A5: B | B5: Município/UF | D5: Brasília/DF
A6: C | B6: Ano de acordo coletivo, convenção coletiva ou sentença normativa em dissídio coletico | D6: 2024
A7: D | B7: Número de meses de execução contratral | D7: 12
A9: 1 | B9: Tipo e serviço (mesmo serviço com características distintas) | C9: Unid. Medida | D9: Quantidade de Funcionários
A10: 1.1 | B10: RECEPCIONISTA | C10: Posto | D10: 1
A12: Dados complementares para composição dos custos referente á mão-de-obra
A14: 1 | B14: Tipo de serviços (mesmo serviço com características distintas) | D14: RECEPCIONISTA
A15: 2 | B15: Classificação Brasileira de Ocupações ( CBO ) | D15: 4110
A16: 3 | B16: Salário normativo da categoria profissional
A17: 4 | B17: Categoria profissional (vinculada à execução contratual) | D17: RECEPCIONISTA
A18: 5 | B18: Data base da categoria (dia/mês/ano) - SINDISERVIÇOS DF000012/2024 | D18: 2024-01-01
A20: Módulo 1: Composição da Remuneração
A21: MÓDULO1 | B21: Composição da Remuneração | C21: % | D21: R$
A22: A | B22: Salário Base | D22: =D16+(C22*D16) -> 0
A23: B | B23: Adicional de periculosidade | D23: =D22*C23 -> 0
A24: C | B24: Adicional de Insalubridade | D24: =D22*C24 -> 0
A25: D | B25: Adicional noturno | D25: 0
A26: E | B26: Adicional de hora noturna reduzida | D26: 0
A27: F | B27: Intervalo Intrajornada | D27: =(D22+D23)*C27 -> 0
A28: H | B28: Outros (Especificar) | D28: 0
A29: I | B29: Total de Remuneração | D29: =SUM(D22:D28) -> 0
A31: MÓDULO 2 | B31: ENCARGOS SOCIAIS E TRABALHISTAS
A32: Submódulo 2.1 - 13º (Décimo Terceiro) Salário, Férias e Adicional de Férias
A33: Submódulo 2.1 | B33: 13º Salário, Férias e Adicional de Férias | C33: % | D33: R$
A34: A | B34: 13º (Décimo Terceiro) Salário | D34: =C34*D22 -> 0
A35: B | B35: Adicional de férias | D35: =C35*D29 -> 0
B36: TOTAL | C36: =SUM(C34:C35) -> 0 | D36: =SUM(D34:D35) -> 0
A37: c | B37: INCIDÊNCIA -SUBMODULO 2.2 SOBRE O SUBMODULO 2.1 - conforme IN 05/2017 | C37: =C36*C51 -> 0 | D37: =C37*D29 -> 0
B38: Total do Submodulo 2 | C38: =C36+C37 -> 0 | D38: =D36+D37 -> 0
A40: Submódulo 2.2 | B40: Encargos Previdenciários(GPS), Fundo de Garantia por tempo de Serviço(FGTS) e outras contribuições
A41: Submódulo 2,2 - Encargos previdenciários e FGTS
A42: 2.2 | B42: GPS, FGTS e Outras Contribuições | C42: % | D42: R$
A43: A | B43: INSS | D43: =C43*(D29) -> 0
A44: B | B44: Salário Educação | D44: =C44*(D29) -> 0
A45: C | B45: Seguro Acidente de Trabalho (Corrigido conforme FAP e GEFIP em anexo ) | D45: =C45*(D29) -> 0
A46: D | B46: SESI ou SESC | D46: =C46*(D29) -> 0
A47: E | B47: SANAI / SENAC | D47: =C47*(D29) -> 0
A48: F | B48: SEBRAE | D48: =C48*(D29) -> 0
A49: G | B49: INCRA | D49: =C49*(D29) -> 0
A50: H | B50: FGTS | D50: =C50*(D29) -> 0
A51: Total | C51: =SUM(C43:C50) -> 0 | D51: =SUM(D43:D50) -> 0
A53: Submódulo 2.3 - Benefícios Mensais e Diários
A54: Sumódulo 2.3 | B54: Benefícios Mensais e Diários | C54: % | D54: R$
A55: A | B55: Transporte
B56: Dedução legal de 6% sobre o salário | D56: =-6%*D22 -> 0
A57: B | B57: Auxilio Alimentação
A58: C | B58: Plano de Saúde
A59: D | B59: Assistência odontológica
A60: E | B60: Auxilio funeral/Seguro de vida
A61: Total | D61: =SUM(D55:D60) -> 0
A63: Quadro- Resumo do Módulo 2 - Encargos e Benefícios Anuais, Mensais e Diários
A64: 2 | B64: Encargos e Beneficios Anuais, Mensais e Dários | C64: % | D64: R$
A65: 2.1 | B65: 13º (décimo terceiro) salário, férias e adicional de férias | D65: =D38 -> 0
A66: 2.2 | B66: GPS, FGTS e outras contribuições | D66: =D51 -> 0
A67: 2.3 | B67: Beneficios Mensais e diários | D67: =D61 -> 0
A68: Total | C68: =SUM(C65:C66) -> 0 | D68: =SUM(D65:D67) -> 0
A70: Módulo 3 - Provisões para Rescisão
A71: MÓDULO 3 | B71: Provisões para Rescisão | C71: % | D71: R$
A72: A | B72: Aviso Prévio Indenizado | D72: =C72*D29 -> 0
A73: B | B73: Incidência do FGTS sobre Aviso Prévio Indenizaso | D73: =C73*D29 -> 0
A74: C | B74: Multa do FGTS do Aviso Prévio Indenizado | D74: =C74*D29 -> 0
A75: D | B75: Aviso Prévio Trabalhado | D75: =C75*D29 -> 0
A76: E | B76: Incidencia do submódulo 4.1 sobre aviso prévio trabalhado | D76: =C76*D29 -> 0
A77: F | B77: Multa do FGTS do aviso prévio trabalhado | D77: =C77*D29 -> 0
A78: Total | C78: =SUM(C72:C77) -> 0 | D78: =SUM(D72:D77) -> 0
A80: MÓDULO 4 | B80: Custo de Reposição do Profissional Ausente
A81: Submódulo 4.1 | B81: Ausências Legais | C81: % | D81: R$
A82: A | B82: Férias | D82: =ROUND(C82*D$29,2) -> 0
A83: B | B83: Ausências Legais | D83: 0
A84: C | B84: Licença paternidade | D84: 0
A85: D | B85: Ausências por acidente de trabalho | D85: 0
A86: E | B86: Afastamento Maternidade | D86: 0
A87: F | B87: Outros (Especificar) | D87: 0
A88: Subtotal | C88: =SUM(C82:C87) -> 0 | D88: =SUM(D82:D87) -> 0
A89: G | B89: Incidencia do modulo 2.2 sobre o custo de reposição | C89: =C88*C51 -> 0 | D89: =C89*D29 -> 0
B90: TOTAL | C90: =SUM(C88:C89) -> 0 | D90: =SUM(D88:D89) -> 0
A92: Submódulo 4.2 - Intrajornada
A93: Submódulo 4.2 | B93: Intrajornada | D93: R$
A94: A | B94: Intervalo para repouso ou alimentação | D94: 0
A95: Total | D95: =D94 -> 0
A97: Quadro-Resumo do Módulo 4 - Custo de Reposição do Profissional Ausente
A98: 4.1 | B98: Encargos e Beneficios Anuais, Mensais e Diários | D98: R$
A99: 4.1 | B99: Ausencias Legais | D99: =D90 -> 0
A100: 4.2 | B100: Intrajornada | D100: =D95 -> 0
A101: Total | D101: =D99+D100 -> 0
A103: Módulo 5 - Insumos Diversos ( reajustado sobre o valor anterior)
A104: MÓDULO 5 | B104: Insumos Diversos | C104: IPCA/% | D104: R$
A105: A | B105: Uniformes
A106: B | B106: Materiais | D106: =713.42*C106 -> 0
A107: C | B107: EQUIPAMENTOS | D107: =11.29*C107 -> 0
A108: D | B108: Outros ( Especificar | D108: =4.69*C108 -> 0
A109: Total | D109: =SUM(D105:D107) -> 0
B110: SUBTOTAL | D110: =D109+D101+D78+D68+D29 -> 0
A111: Módulo 6: Custos Indiretos, Tributos e Lucro
A112: MÓDULO 6 | B112: Custos Indiretos, Tributos e Lucro | C112: % | D112: R$
A113: A | B113: Custos Indiretos | D113: =D110*C113 -> 0
A114: B | B114: Lucro | D114: =(D110+D113)*C114 -> 0
A115: C | B115: Tributos | D115: =(D110+D113+D114)/(100%-C115)*C115 -> 0
A116: C1 | B116: PIS | D116: =D130*C116 -> 0
A117: C2 | B117: COFINS | D117: =D130*C117 -> 0
A118: C3 | B118: ISS | D118: =D130*C118 -> 0
A119: Total | D119: =D113+D115+D114 -> 0
A121: 2. QUADRO-RESUMO DO CUSTO POR EMPREGADO
A122: Mão de obra vinculada à execução contratual (valor por empregado) | D122: R$
A123: A | B123: Módulo 1 - Composição da Remuneração | D123: =D29 -> 0
A124: B | B124: Módulo 2 - Encargos e Beneficios Anuais, Mensais e Diários | D124: =D68 -> 0
A125: C | B125: Módulo 3 -Provisão para Rescisão | D125: =D78 -> 0
A126: D | B126: Módulo 4 - Custo de Reposição do Profissional Ausente | D126: =D101 -> 0
A127: E | B127: Módulo 5- Insumos Diversos | D127: =D109 -> 0
A128: Subtotal (A+B+C+D+E) | D128: =SUM(D123:D127) -> 0
A129: E | B129: Módulo 5 - Custos Indiretos, Tributos e Lucro | D129: =D119 -> 0
A130: Valor Total por EMPREGADO | D130: =(D128+D113+D114)/(1-C115) -> 0
A131: Valor Total por Posto | D131: =D130 -> 0

Sheet UNIFORMES (hidden)
A1: RELAÇÃO GERAL DE UNIFORMES
A3: ITEM | B3: ESPECIFICAÇÃO BOMBEIRO HIDRÁULICO e MARCENEIRO | C3: UN | D3: QTDE. | E3: VALOR UNITÁRIO | F3: Valor total
A5: 1 | B5: Camiseta Manga curta Camisa tipo gola pólo, manga curta, com logomarca da empresa; | C5: un | D5: 6 | E5: 30 | F5: =D5*E5 -> 180
A6: 2 | B6: Camiseta Mnaga longa Camiseta tipo gola polo, de manga longa, com logomarca da empresa; | C6: un | D6: 2 | E6: 30 | F6: =D6*E6 -> 60
A7: 3 | B7: Calça jeans; | C7: un | D7: 4 | E7: 30 | F7: 120
A8: 4 | B8: Cinto em couro, modelo social, regulável | C8: un | D8: 2 | E8: 9 | F8: 18
A9: 5 | B9: Par de meias tipo esporte | C9: par | D9: 6 | E9: 5 | F9: 30
A10: 6 | B10: Calçado tipo bota em couro, solado vulcanizado e antiderrapante, com palmilha antibacteriana | C10: par | D10: 2 | E10: 52.65 | F10: 105.3
A11: Valor total | F11: =SUM(F5:F10) -> 513.3
A12: Valor por empregado | F12: =F11/12 -> 42.78
A14: ITEM | B14: ESPECIFICAÇÃO GARÇOM | C14: UN | D14: QTDE. | E14: VALOR UNITÁRIO | F14: Valor total
A16: 1 | B16: Camisa social, na cor branca, mangas compridas, com botões nos punhos, contendo o emblema da Contratada bordado no lado superior esquerdo ou direito. | C16: un | D16: 6 | E16: 35 | F16: =D16*E16 -> 210
A17: 2 | B17: Calça Comprida social, em tecido Oxford com zíper, presilha para cinto, cor preta. | C17: un | D17: 4 | E17: 35 | F17: =D17*E17 -> 140
A18: 3 | B18: Blazer Na cor preta, em tecido tipo microfibra, forrado internamente, inclusive na manga, com 2 (dois) bolsos inferiores, contendo o emblema da Contratada bordado no lado superior esquerdo ou direito; | C18: un | D18: 2 | E18: 95 | F18: 190
A19: 4 | B19: Gravata tipo borboleta na cor preta. | C19: un | D19: 2 | E19: 10 | F19: 20
A20: 5 | B20: Cinto em couro, modelo social, regulável; | C20: un | D20: 2 | E20: 10 | F20: 20
A21: 6 | B21: Meia social em tecido liso, 100% algodão, na cor preta. | C21: par | D21: 6 | E21: 5 | F21: 30
A22: 7 | B22: sapato Modelo social, de boa qualidade, em couro, na cor preta, solado antiderrapante. | C22: par | D22: 2 | E22: 70 | F22: 140
A23: Valor total | F23: =SUM(F16:F22) -> 750
A24: Valor por empregado | F24: =F23/12 -> 62.5
A25: ITEM | B25: ESPECIFICAÇÃO COPEIRA | C25: UN | D25: QTDE. | E25: VALOR UNITÁRIO | F25: Valor total
A27: 1 | B27: Jaleco com botões e 2 (dois) bolsos inferiores, na cor azul marinho, com detalhes em branco na gola, nas mangas e nos bolsos, contendo o emblema da Contratada bordado no lado superior esquerdo ou direito. | C27: un | D27: 6 | E27: 35 | F27: =D27*E27 -> 210
A28: 2 | B28: Calça tipo social, com zíper, na cor azul marinho, fazendo conjunto com o jaleco | C28: un | D28: 4 | E28: 35 | F28: =D28*E28 -> 140
A29: 3 | B29: Blazer Na cor preta, em tecido tipo microfibra, forrado internamente, inclusive na manga, com 2 (dois) bolsos inferiores, contendo o emblema da Contratada bordado no lado superior esquerdo | C29: un | D29: 1 | E29: 95 | F29: 95
A30: 4 | B30: Avental em Oxford ou tergal, na cor branca, com amarras dos lados. | C30: un | D30: 4 | E30: 25 | F30: 100
A31: 5 | B31: Laço/Prendedor de cabelos, com laço de rede, na cor preta. | C31: un | D31: 4 | E31: 10 | F31: 40
A32: 6 | B32: Meias Social ¾ na cor natural | C32: par | D32: 6 | E32: 5 | F32: 30
A33: 7 | B33: Sapato tipo scarpin social que seja macio, palmilha de montagem em couro, solado em couro com proteção antiderrapante, salto máximo 3 cm, na cor preta. | C33: par | D33: 2 | E33: 65 | F33: 130
A34: Valor total | F34: =SUM(F27:F33) -> 745
A35: Valor por empregado | F35: =F34/12 -> 62.08
A37: ITEM | B37: ESPECIFICAÇÃO RECEPCIONISTA | C37: UN | D37: QTDE. | E37: VALOR UNITÁRIO | F37: Valor total
A39: 1 | B39: Camisa social, mangas compridas, com botões nos punhos, contendo o emblema da Contratada bordado no lado superior esquerdo ou direito. | C39: un | D39: 2 | E39: 35 | F39: =D39*E39 -> 70
A40: 2 | B40: Camisa social, manga curta ou manga 3/4, contendo o emblema da Contratada bordado no lado superior esquerdo ou direito. | C40: un | D40: 4 | E40: 35 | F40: =D40*E40 -> 140
A41: 3 | B41: Saia ou Vestido Tipo esporte fino, ambos com zíper na parte de trás, na cor preta, na altura do joelho, contendo o emblema da Contratada bordado no lado superior esquerdo ou direito. | C41: un | D41: 1 | E41: 65 | F41: 65
A42: 4 | B42: CalçaTipo esporte fino, com zíper, na cor preta; | C42: un | D42: 4 | E42: 35 | F42: 140
A43: 5 | B43: Blazer Na cor preta, em tecido tipo microfibra, forrado internamente, inclusive na manga, com 2 (dois) bolsos inferiores, contendo o emblema da Contratada bordado no lado superior esquerdo | C43: un | D43: 2 | E43: 95 | F43: 190
A44: 6 | B44: Meia social ¾ na cor natural | C44: par | D44: 6 | E44: 8 | F44: 48
A45: 7 | B45: Meia calça clássica, fio 15, na cor preta | C45: un | D45: 4 | E45: 8 | F45: 32
A46: 8 | B46: Lenço para o pescoço, em crepe, contendo o nome da empresa, de boa qualidade. | C46: UN | D46: 4 | E46: 10 | F46: 40
A47: 9 | B47: Prendedor de cabelos, com laço de rede, na cor preta. | C47: un | D47: 4 | E47: 10 | F47: 40
A48: 10 | B48: Sapato tipo scarpin social que seja macio, palmilha de montagem em couro, solado em couro com proteção antiderrapante, salto máximo 3 cm, na cor preta. | C48: par | D48: 2 | E48: 65 | F48: 130
A49: Valor total | F49: =SUM(F39:F48) -> 895
A50: Valor por empregado | F50: =F49/12 -> 74.58
A52: ITEM | B52: ESPECIFICAÇÃO ENCARREGADO(A) | C52: UN | D52: QTDE. | E52: VALOR UNITÁRIO | F52: Valor total
A54: 1 | B54: Camisa social, mangas compridas, com botões nos punhos, contendo o emblema da Contratada bordado no lado superior esquerdo ou direito. | C54: un | D54: 4 | E54: 35 | F54: =D54*E54 -> 140
A55: 2 | B55: Camisa social, mangas curtas, contendo o emblema da Contratada bordado no lado superior esquerdo ou direito. | C55: un | D55: 4 | E55: 35 | F55: =D55*E55 -> 140
A56: 3 | B56: Blazer Na cor preta, em tecido tipo microfibra, forrado internamente, inclusive na manga, com 2 (dois) bolsos inferiores, contendo o emblema da Contratada bordado no lado superior esquerdo. | C56: un | D56: 1 | E56: 95 | F56: 95
A57: 4 | B57: Cinto em couro, modelo social, regulável; | C57: un | D57: 2 | E57: 12 | F57: 24
A58: 5 | B58: Calça Comprida social, em tecido Oxford com zíper, presilha para cinto, cor preta | C58: un | D58: 4 | E58: 35 | F58: 140
A59: 6 | B59: Meia social em tecido liso, 100% algodão, na cor preta. | C59: par | D59: 6 | E59: 5 | F59: 30
A60: 7 | B60: Sapato modelo social, de boa qualidade, em couro, na cor preta, solado antiderrapante. | C60: par | D60: 4 | E60: 70 | F60: 280
A61: Valor total | F61: =SUM(F54:F60) -> 849
A62: Valor por empregado | F62: =F61/12 -> 70.75
A64: ITEM | B64: ESPECIFICAÇÃO SERVENTE | C64: UN | D64: QTDE. | E64: VALOR UNITÁRIO | F64: Valor total
A66: 1 | B66: Camiseta com gola simples, de mangas curtas, sem abotoamento, com logomarca da empresa; | C66: un | D66: 6 | E66: 30 | F66: =D66*E66 -> 180
A67: 2 | B67: Camiseta com gola simples, de mangas longas, sem abotoamento, com logomarca da empresa; | C67: un | D67: 2 | E67: 30 | F67: =D67*E67 -> 60
A68: 3 | B68: Calça comprida com elástico e cordão, em tecido brim; | C68: un | D68: 4 | E68: 35 | F68: 140
A69: 4 | B69: Meia em algodão, tipo soquete; | C69: par | D69: 6 | E69: 10 | F69: 60
A70: 5 | B70: Calçado cano curto, solado antideslizante e antiderrapante, com palmilha antibacteriana. | C70: un | D70: 2 | E70: 55 | F70: 110
A71: 6 | B71: Bota de borracha para limpeza com solado antiderrapante; | C71: par | D71: 1 | E71: 40 | F71: 40
A72: Valor total | F72: =SUM(F66:F71) -> 590
A73: Valor por empregado | F73: =F72/12 -> 49.17

Sheet MATERIAIS e EQUIPAMENTOS (hidden)
A3: LIMPEZA- Relação minima estimada de materiais de consumo MENSAL
A4: ITEM | B4: PERIODICIDADE | C4: UNIDADE DE FORNECIMENTO | D4: QDE ESTIMATIVA | E4: R$ UNITÁRIO | F4: R$ TOTAL
A5: Água sanitária de 1ª qualidade, galão de 5 litros | B5: Mensal | C5: UNIDADE | D5: 5 | E5: 2.1 | F5: =E5*D5 -> 10.5
A6: Álcool 46 º C de 1ª qualidade | B6: Mensal | C6: UNIDADE | D6: 24 | E6: 5.1 | F6: =E6*D6 -> 122.4
A7: Álcool Gel 70% hidratante, antisseptico, de 1ª qualidade, galão de 5 litros | B7: Mensal | C7: UNIDADE | D7: 1 | E7: 6.5 | F7: 6.5
A8: Desodorizador de ar (aerosol), cada unidade com 360 ml | B8: Anual | C8: UNIDADE | D8: 20 | E8: 6.5 | F8: 130
A9: Brilha Inox, lata com 420g | B9: Mensal | C9: UNIDADE | D9: 2 | E9: 5.2 | F9: 10.4
A10: Desinfetante concentrado, galão de 5 litros | B10: Mensal | C10: UNIDADE | D10: 6 | E10: 19.5 | F10: 117
A11: Disco para enceradeira de 510mm | B11: Anual | C11: UNIDADE | D11: 6 | E11: 18.5 | F11: 111
A12: Esponja de espuma multiuso dupla face com manta abrasiva no padrão 3M Scote Brite | B12: Mensal | C12: UNIDADE | D12: 24 | E12: 0.95 | F12: 22.8
A13: Fibra limpeza pesada | B13: Mensal | C13: UNIDADE | D13: 10 | E13: 2.25 | F13: 22.5
A14: Fita zebrada | B14: Mensal | C14: UNIDADE | D14: 1 | E14: 4.2 | F14: 4.2
A15: Flanela - 28x38 cm, cor amarela | B15: Mensal | C15: UNIDADE | D15: 20 | E15: 1.95 | F15: 39
A16: Flanela - 28x38 cm, cor branca | B16: Mensal | C16: UNIDADE | D16: 10 | E16: 1.95 | F16: =E16*D16 -> 19.5
A17: Impermeabilizante antiderrapante para piso granitina, galão de 5 litros | B17: Mensal | C17: UNIDADE | D17: 6 | E17: 62.93 | F17: 377.58
A18: Esponja de Lã de aço no padrão da marca bombril | B18: Mensal | C18: UNIDADE | D18: 16 | E18: 2.99 | F18: 47.84
A19: Limpa vidros concentrado, galão de 5 litros | B19: Mensal | C19: UNIDADE | D19: 2 | E19: 16.3 | F19: 32.6
A20: Limpador multiuso no padrão da marca VEJA | B20: Mensal | C20: UNIDADE | D20: 24 | E20: 1.35 | F20: 32.4
A21: Luvas de látex (par) | B21: Mensal | C21: UNIDADE | D21: 36 | E21: 3.1 | F21: 111.6
A22: Papel higiênico macio, de 1ª qualidade, folha dupla picotada, rolo com 30 metros (a serem utilizados nos lavabos) - 02 fardos com 16 rolos | B22: Mensal | C22: UNIDADE | D22: 32 | E22: 49.5 | F22: 1584
A23: Papel higiênico macio, de 1ª qualidade, folha dupla picotada, rolo com 300 metros (a serem utilizados nos banheiros coletivos) - 50 fardos com 8 rolos | B23: Mensal | C23: UNIDADE | D23: 400 | E23: 12.3 | F23: 4920
A24: Papel toalha, interfolhado, macio, hidrossolúvel, feito com 100% de celulose na cor branca, folha dupla, de 1ª qualidade - 140 fardos com 2000 folhas | B24: Anual | C24: CAIXA | D24: 140 | E24: 22 | F24: 3080
A25: Pasta rosa de 1ª qualidade | B25: Mensal | C25: UNIDADE | D25: 10 | E25: 5.2 | F25: 52
A26: Removedor concentrado desengordurante, desengraxante, removedor de cera, limpador de coifas e fogões, galão de 5 litros | B26: Mensal | C26: UNIDADE | D26: 4 | E26: 21 | F26: 84
A27: Saco alvejado, 100% algodão, para limpeza de chão | B27: Mensal | C27: UNIDADE | D27: 36 | E27: 3.5 | F27: 126
A28: Sabão em barra de 1ª qualidade | B28: Mensal | C28: UNIDADE | D28: 35 | E28: 2.05 | F28: 71.75
A29: Sabão em pó, 1 kg | B29: Mensal | C29: CAIXA | D29: 10 | E29: 6.5 | F29: 65
A30: Sabonete líquido de 1ª qualidade, perfumado, galão de 5 litros | B30: Mensal | C30: UNIDADE | D30: 12 | E30: 1.35 | F30: 16.2
A31: Saco para lixo 100 litros com 100 unidades – reforçado | B31: Mensal | C31: PACOTE | D31: 10 | E31: 18.5 | F31: 185
A32: Saco para lixo 200 litros com 100 unidades – reforçado | B32: Mensal | C32: PACOTE | D32: 5 | E32: 23.5 | F32: 117.5
A33: Saco para lixo 40 litros com 100 unidades – reforçado | B33: Mensal | C33: PACOTE | D33: 4 | E33: 16 | F33: 64
A34: Saco para lixo 60 litros com 100 unidades – reforçado | B34: Mensal | C34: PACOTE | D34: 5 | E34: 18 | F34: 90
A35: Tela odorizadora para mictorio com pedra | B35: Mensal | C35: UNIDADE | D35: 30 | E35: 13.9 | F35: 417
A36: TOTAL GERAL | F36: =SUM(F5:F35) -> 12090.27
A37: TOTAL GERAL / UTS | F37: =F36/18 -> 671.68
A39: LIMPEZA - Relação minima estimada de materiais de consumo anual
A40: ITEM | B40: PERIODICIDADE | C40: UNIDADE DE FORNECIMENTO | D40: QDE ESTIMATIVA | E40: R$ UNITÁRIO | F40: R$ TOTAL
A41: Balde plástico reforçado de 12 litros | B41: ANUAL | C41: UNIDADE | D41: 36 | E41: 2.1 | F41: =E41*D41 -> 75.6
A42: Balde plástico reforçado de 20 litros | B42: ANUAL | C42: UNIDADE | D42: 36 | E42: 5.1 | F42: =E42*D42 -> 183.6
A43: Escova de mão, com cerdas de nylon | B43: ANUAL | C43: UNIDADE | D43: 8 | E43: 6.5 | F43: 52
A44: Escova sanitária com cerdas de nylon em formato circular, para higienização de vaso sanitário c/suporte | B44: ANUAL | C44: UNIDADE | D44: 15 | E44: 5 | F44: 75
A45: Máscara contra pó e odores padrão 3M ou similar | B45: ANUAL | C45: UNIDADE | D45: 20 | E45: 5.2 | F45: 104
A46: Pá de lixo com cabo longo | B46: ANUAL | C46: UNIDADE | D46: 20 | E46: 18.5 | F46: 370
A47: Rodo limpa vidros com cabo longo | B47: ANUAL | C47: UNIDADE | D47: 3 | E47: 18.5 | F47: 55.5
A48: Rodo, com 40 cm de largura, com cabo | B48: ANUAL | C48: UNIDADE | D48: 35 | E48: 0.95 | F48: 33.25
A49: Rodo, com 60 cm de largura, com cabo | B49: ANUAL | C49: UNIDADE | D49: 35 | E49: 2.25 | F49: 78.75
A50: Rodo, com 90 cm de largura, com cabo | B50: ANUAL | C50: UNIDADE | D50: 30 | E50: 4.2 | F50: 126
A51: Saco para aspirador de pó | B51: ANUAL | C51: UNIDADE | D51: 2 | E51: 1.95 | F51: 3.9
A52: Suporte para fibra abrasiva | B52: ANUAL | C52: UNIDADE | D52: 8 | E52: 60 | F52: 480
A53: Rastelo de plástico cabo longo | B53: ANUAL | C53: UNIDADE | D53: 2 | E53: 2.99 | F53: 5.98
A54: Vassoura de pêlo de 40 cm com cabo | B54: ANUAL | C54: UNIDADE | D54: 30 | E54: 16.3 | F54: 489
A55: Vassoura de pêlo de 60 cm com cabo | B55: ANUAL | C55: UNIDADE | D55: 30 | E55: 1.35 | F55: 40.5
A56: Vassoura de piaçava de 40 cm | B56: ANUAL | C56: UNIDADE | D56: 40 | E56: 3.1 | F56: 124
A57: TOTAL GERAL | F57: =SUM(F41:F56) -> 2297.08
A58: TOTAL GERAL / UTS | F58: =F57/18/12 -> 10.63
A60: COPEIRA- Relação minima estimada de materiais de consumo MENSAL
A61: ITEM | B61: PERIODICIDADE | C61: UNIDADE DE FORNECIMENTO | D61: QDE ESTIMATIVA | E61: R$ UNITÁRIO | F61: R$ TOTAL
A62: Água sanitária de 1ª qualidade, galão de 5 litros | B62: Mensal | C62: UNIDADE | D62: 4 | E62: 2.1 | F62: =E62*D62 -> 8.4
A63: Álcool 46 º C de 1ª qualidade | B63: Mensal | C63: UNIDADE | D63: 4 | E63: 5.1 | F63: =E63*D63 -> 20.4
A64: Detergente líquido neutro biodegradável de 1ª qualidade, para utilização nas copas, 500 ml (minuano ou similar) | B64: Mensal | C64: UNIDADE | D64: 24 | E64: 1.55 | F64: 37.2
A65: Esponja de espuma multiuso dupla face com manta abrasiva no padrão 3M Scote Brite | B65: Mensal | C65: UNIDADE | D65: 24 | E65: 0.95 | F65: 22.8
A66: Esponja de Lã de aço no padrão da marca bombril | B66: Mensal | C66: UNIDADE | D66: 16 | E66: 2.99 | F66: 47.84
A67: Luvas de látex (par) | B67: Mensal | C67: UNIDADE | D67: 5 | E67: 3.1 | F67: 15.5
A68: Limpador multiuso no padrão da marca VEJA | B68: Mensal | C68: UNIDADE | D68: 8 | E68: 1.35 | F68: 10.8
A69: Papel toalha, rolo | B69: Mensal | C69: UNIDADE | D69: 10 | E69: 30 | F69: 300
A70: Pano de prato 100% algodão | B70: Mensal | C70: UNIDADE | D70: 8 | E70: 2.45 | F70: 19.6
A71: Flanela - 28x38 cm, cor amarela | B71: Mensal | C71: UNIDADE | D71: 5 | E71: 0.85 | F71: 4.25
A72: Sabão em barra de 1ª qualidade | B72: Mensal | C72: UNIDADE | D72: 8 | E72: 1.95 | F72: 15.6
A73: Sabão em pó, 1 kg | B73: Mensal | C73: CAIXA | D73: 4 | E73: 6.5 | F73: 26
A74: Saponanceo cremoso | B74: Mensal | C74: UNIDADE | D74: 4 | E74: 3.5 | F74: 14
A75: TOTAL GERAL | F75: =SUM(F62:F74) -> 542.39
A76: TOTAL GERAL / UTS | F76: =F75/5 -> 108.48
A78: COPEIRA- Relação minima estimada de materiais de consumo ANUAL
A79: ITEM | B79: PERIODICIDADE | C79: UNIDADE DE FORNECIMENTO | D79: QDE ESTIMATIVA | E79: R$ UNITÁRIO | F79: R$ TOTAL
A80: Balde plástico reforçado de 12 litros | B80: ANUAL | C80: UNIDADE | D80: 4 | E80: 12 | F80: =E80*D80 -> 48
A81: Coador de café de pano para máquina indutrial, 10 litros Unidade | B81: ANUAL | C81: UNIDADE | D81: 12 | E81: 3 | F81: =E81*D81 -> 36
A82: Rodo de pia | B82: ANUAL | C82: UNIDADE | D82: 12 | E82: 5 | F82: 60
A83: Rodo, com 40 cm de largura, com cabo | B83: ANUAL | C83: UNIDADE | D83: 4 | E83: 6.9 | F83: 27.6
A84: Suporte para sabão e bucha | B84: ANUAL | C84: UNIDADE | D84: 4 | E84: 9.5 | F84: 38
A85: Saco alvejado, 100% algodão, para limpeza de chão | B85: ANUAL | C85: UNIDADE | D85: 12 | E85: 3.5 | F85: 42
A86: TOTAL GERAL | F86: =SUM(F80:F85) -> 251.6
A87: TOTAL GERAL / UTS | F87: =F86/5/12 -> 4.19
A89: BOMBEIRO HIDRÁULICO - Relação mínima estimada de materiais de consumo - MENSAL
A90: ITEM | B90: PERIODICIDADE | C90: UNIDADE DE FORNECIMENTO | D90: QDE ESTIMATIVA | E90: R$ UNITÁRIO | F90: R$ TOTAL
A91: Estopa branca super extra, 100% algodão, com 1kg | B91: Mensal | C91: PACOTE | D91: 1 | E91: 5.9 | F91: =E91*D91 -> 5.9
A92: Luvas reforçadas compridas | B92: Mensal | C92: UNIDADE | D92: 1 | E92: 7.5 | F92: =E92*D92 -> 7.5
A93: Produto de limpeza biológica de caixa de gordura | B93: Mensal | C93: CAIXA | D93: 1 | E93: 25 | F93: 25
A94: TOTAL GERAL | F94: =SUM(F91:F93) -> 38.4
A95: TOTAL GERAL / UTS | F95: =F94/1 -> 38.4
A97: BOMBEIRO HIDRÁULICO - Relação mínima estimada de materiais de consumo - ANUAL
A98: ITEM | B98: PERIODICIDADE | C98: UNIDADE DE FORNECIMENTO | D98: QDE ESTIMATIVA | E98: R$ UNITÁRIO | F98: R$ TOTAL
A99: Balde plástico reforçado de 20 litros | B99: ANUAL | C99: UNIDADE | D99: 2 | E99: 12 | F99: =E99*D99 -> 24
A100: Máscara contra pó e odores padrão 3M ou similar | B100: ANUAL | C100: UNIDADE | D100: 5 | E100: 5.2 | F100: 26
A101: Desentupidor manual para pia | B101: ANUAL | C101: UNIDADE | D101: 4 | E101: 5 | F101: 20
A102: Desentupidor de Vaso sanitário | B102: ANUAL | C102: UNIDADE | D102: 2 | E102: 5 | F102: 10
A103: Saco alvejado, 100% algodão, para limpeza de chão | B103: ANUAL | C103: UNIDADE | D103: 4 | E103: 3.5 | F103: 14
A104: TOTAL GERAL | F104: =SUM(F99:F103) -> 94
A105: TOTAL GERAL / UTS | F105: =F104/12 -> 7.83
A107: MARCENEIRO - Relação mínima estimada de materiais de consumo - ANUAL
A108: ITEM | B108: PERIODICIDADE | C108: UNIDADE DE FORNECIMENTO | D108: QDE ESTIMATIVA | E108: R$ UNITÁRIO | F108: R$ TOTAL
A109: Protetor auricular concha preto | B109: ANUAL | C109: UNIDADE | D109: 1 | E109: 5.1 | F109: =E109*D109 -> 5.1
A110: Máscara de proteção para pó - padrão 3M ou similar | B110: ANUAL | C110: UNIDADE | D110: 5 | E110: 5.2 | F110: 26
A111: Óculos de proteção com ampla visão | B111: ANUAL | C111: UNIDADE | D111: 2 | E111: 8.2 | F111: 16.4
A112: Avental em pvc com forro branco | B112: ANUAL | C112: UNIDADE | D112: 2 | E112: 30 | F112: 60
A113: Saco alvejado, 100% algodão, para limpeza de chão | B113: Mensal | C113: UNIDADE | D113: 5 | E113: 3.5 | F113: 17.5
A114: TOTAL GERAL | F114: =SUM(F109:F113) -> 125
A115: TOTAL GERAL / UTS | F115: =F114/12 -> 10.42
A117: Relação de Equipamentos para fornecimento ddurante a execução do contrato
A118: ITEM | B118: PERIODICIDADE | C118: UNIDADE DE FORNECIMENTO | D118: QDE ESTIMATIVA | E118: R$ UNITÁRIO | F118: R$ TOTAL
A119: Aspirador de pó/líquido | B119: ANUAL | C119: UNIDADE | D119: 1 | E119: 289 | F119: =E119*D119 -> 289
A120: Carro para coleta de papeis reciclados com 2 rodas | B120: ANUAL | C120: UNIDADE | D120: 2 | E120: 350 | F120: 700
A121: Carro para coleta de resíduos com 2 rodas | B121: ANUAL | C121: UNIDADE | D121: 1 | E121: 350 | F121: =E121*D121 -> 350
A122: Enceradeira - baixo nível de ruído | B122: ANUAL | C122: UNIDADE | D122: 1 | E122: 1300 | F122: 1300
A123: Escada metálica - 4 degraus | B123: ANUAL | C123: UNIDADE | D123: 24 | E123: 150 | F123: 3600
A124: Escada metálica - 9 degraus | B124: ANUAL | C124: UNIDADE | D124: 24 | E124: 195 | F124: 4680
A125: Mangueira para jardim 3/4" com 50 metros em PVC (externa) / poliéster trançado (intermediário) | B125: ANUAL | C125: UNIDADE | D125: 1 | E125: 120 | F125: 120
A126: Placa de sinalização alto portátil na cor amarela com os dizeres nos dois lados em preto “Banheiro Em Manutenção”. | B126: ANUAL | C126: UNIDADE | D126: 15 | E126: 20 | F126: 300
A127: Placa de sinalização alto portátil na cor amarela com os dizeres nos dois lados em preto “Piso Molhado”. | B127: ANUAL | C127: UNIDADE | D127: 10 | E127: 20 | F127: 200
A128: Balde duas águas, capacidade mínima de 40 litros, com rodas e espremedor MOP | B128: ANUAL | C128: UNIDADE | D128: 1 | E128: 120 | F128: 120
A129: TOTAL GERAL | F129: =SUM(F119:F128) -> 11659
A130: TOTAL GERAL / UTS | F130: =F129/60/18 -> 10.8

Sheet EQUIPAMENTOS (hidden)
A1: RELAÇÃO DE MATERIAL PERMANENTE
A4: ITENS | B4: MATERIAL | C4: ESTIMATIVA | D4: R$ UNITARIO | E4: R$ TOTAL
A5: 1 | B5: Enceradeira industrial | C5: 2 | D5: 1300 | E5: =D5*C5/60 -> 43.33
A6: 2 | B6: Lavadora de alta pressão | C6: 1 | D6: 650 | E6: =D6*C6/60 -> 10.83
A7: 3 | B7: Aspirador de pó e água | C7: 2 | D7: 350 | E7: =D7*C7/60 -> 11.67
A8: 4 | B8: Contentor/ lixeira de 240 litros | C8: 2 | D8: 450 | E8: =D8*C8/60 -> 15
A9: Total do material | E9: =SUM(E5:E8) -> 80.83
A10: Total do material por empregado | E10: =E9/18 -> 4.49

Sheet Memória de Calculos Encargo (hidden)
A1: Memória de Cálculo - Encargos Sociais
A3: Módulo : Encargos Sociais Trabalhistas
A4: Encargos previdenciários e FGTS
B5: Encargos Previdenciários e FGTS | D5: % | E5: Memória de Cálculo dos Percentuais
A6: A | B6: INSS - Art. 22, I, Lei 8.212/91 | D6: 0.2 | E6: Percentual conforme estabelecido em legislação vigente - Art. 22, I, Lei 8.212/91
A7: B | B7: SESI OU SESC - Art.º 3º, Lei 8.036/90 | D7: 0.015 | E7: Percentual conforme estabelecido em legislação vigente - Art.º 3º, Lei 8.036/90
A8: C | B8: SENAI OU SENAC - Decreto 2.318/86 | D8: 0.01 | E8: Percentual conforme estabelecido em legislação vigente - Decreto 2.318/86
A9: D | B9: INCRA - Lei 7.787/89 e DL 1.146/70 | D9: 0.002 | E9: Lei 7.787/89 e DL 1.146/70
A10: E | B10: Salário Educação - Art. 8º da Lei 8.029/90 e Lei 8.154/90 | D10: 0.025 | E10: Percentual conforme estabelecido em legislação vigente - Art. 8º da Lei 8.029/90 e Lei 8.154/90
A11: F | B11: FGTS - Art. 15 da Lei 8.030/90 e Art. 7º, III da CF/88 | D11: 0.08 | E11: Percentual conforme estabelecido em legislação vigente - Art. 15 da Lei 8.030/90 e Art. 7º, III da CF/88
A12: G | B12: Seguro Acidente de Trabalho / SAT / INSS (Conforme GFIP/SEFIP em anexo - FAP 0,85 x RAT 2,00 = RAT Ajustado 3,21) | D12: 0.017 | E12: Percentual conforme estabelecido em legislação vigente - (Conforme GFIP/SEFIP em anexo - FAP 0,50 x RAT 3,00 = RAT Ajustado 1,50)
A13: H | B13: SEBRAE | D13: 0.006 | E13: Percentual conforme estabelecido em legislação vigente
A14: Total | D14: =SUM(D6:D13) -> 0.355 | E14: Somatório de (A+B+C+D+E+F+G+H)
A16: 13º Salário e Adicional de Férias
B17: 13º Salário e Adicional de Férias | C17: Base de Calculo | D17: % | E17: Memória de Cálculo dos Percentuais
A18: A | B18: 13º Salário | C18: Módulo 1 | D18: 0.0833 | E18: (5/60*100); onde: 5 corresponde a quantidade ocorrencias de 13º salário no decorrer do contrato; 60 quantidade de meses contratuais
A19: B | B19: Adicional de Férias | C19: Módulo 1 | D19: 0.0278 | E19: 2,78% ( 1/3 da Remuneração/12meses) = 100%da remunerçaão /3/12meses)
A20: Subtotal (A + B) | D20: =D18+D19 -> 0.1111 | E20: Somatório de A + B
A21: C | B21: Incidência do submódulo 4.1 sobre A e B | C21: Subtotal | D21: =D14*D20 -> 0.0394 | E21: Total do percentual do submódulo 4.1 multiplicado pelo subtotal do sobmódulo 4.2 (35,50% x 11,11%)
A22: Total | D22: =D20+D21 -> 0.1505 | E22: Somatório de (A+B+C)
A24: Submódulo 4.3 - Afastamento Maternidade
A25: 4.3 | B25: Afastamento Maternidade | C25: Base de Calculo | D25: % | E25: Memória de Cálculo dos Percentuais
A26: A | B26: Afastamento Maternidade | C26: Módulo 1 | D26: 0.0002 | E26: [(0,1111 x 0,02 x 0,333) x 100] = [0,0007 x 100] =0,07- Acórdão TCU - Plenário nº 1513/2013.
A27: B | B27: Incidência do submódulo 4.1 sobre A | C27: Subtotal | D27: =D14*D26 -> 0.0001 | E27: Total do percentual do submódulo 4.1 multiplicado pelo percentual do Afatamento Maternidade (35,30% x 0,02%)
A28: Total | D28: =SUM(D26:D27) -> 0.0003 | E28: Somatório de (A+B)
A30: Provisões para Rescisão
B31: Provisões para Rescisão | D31: % | E31: R$
A32: A | B32: Aviso Prévio Indenizado | D32: =1/12*0.05 -> 0.0042 | E32: (1/12)x0,05x100 onde: 0,05refere-se ao percentual de ocorrências ( Art. 7º Inciso XXI da CEF/88 e 477 a 491 da CLT e Acordão TCU-Plenário 1513/2013
A33: B | B33: Incidência do FGTS sobre Aviso Prévio Indenizaso | D33: =D11*D32 -> 0.0003 | E33: (8x0,42)/100 onde: 8 é o percentual de FGTS e 0,42 Aviso Previo Indenizado
A34: C | B34: Multa sobre FGTS sobre o Aviso Prévio Indenizado | D34: 0.002 | E34: {[0,05 *(0,4+0,10)]*0,80)= 0,20 onde 5% corresponde ao percentual de demissões antes do término- Nota Técnica 001/2013 e Acordão TCU-Plenário 1513/2013
A35: D | B35: Aviso Prévio Trabalhado | D35: 0.0194 | E35: Conforme IN05/2017 ( caderno técnico)
A36: E | B36: Incidencia do submódulo 4.1 sobre aviso prévio trabalhado | D36: =D14*D35 -> 0.0069 | E36: Total do percentual do submódulo 4.1 multiplicado pelo percentual do aviso prévio trabalhado (35,50% x 1,70%)
A37: F | B37: Multa sobre FGTS sobre o aviso prévio trabalhado | D37: 0.043 | E37: Resolução nº 98/2009-CNJ
A38: Total | D38: =SUM(D32:D37) -> 0.0758 | E38: Somatório de (A+B+C+D+E+F)
A40: Custo de Reposição do Profissional Ausente
B41: Custo de Reposição do Profissional Ausente | C41: Base de Cálculo | D41: % | E41: Memória de Cálculo dos Percentuais
A42: A | B42: Férias | C42: Módulo 1 | D42: 0.0833 | E42: (1/12)*100=8,33 ( Artigos 129,130,142 e 143 da CLT (Decreto Lei 5.452/43). Acordão TCU 1904/2017 e 1513/2013-Plenário . Resolução CNJ 98/2009.
A43: B | B43: Ausências legais | C43: Módulo 1 | D43: 0.0028 | E43: [(1/30)/12]*100 - Art 473 da CLT ( Decreto Lei 5.452/43, incisos I a IX, e 822 da CLT - Acordão TCU Plenário 1904/2007 e Acordão TCU Plenário1513/2013
A44: C | B44: Licença Paternidade | C44: Módulo 1 | D44: 0.0002 | E44: [(5/30)/12*0,015]*100-Atigos 7º, inciso XIX, § 1º dos Atos das Disposições Constitucionais Transitórias-ADCT
A45: D | B45: Ausencia por acidente de Trabalho | C45: Módulo 1 | D45: 0.0033 | E45: (15/30)/12x 0,08x100 - Artigos 59 e 60, § 3º da Lei 8.213/1991.
A46: E | B46: Afstameto Maternidade | C46: Módulo 1 | D46: 0.0007 | E46: [(0,1111 x 0,02 x 0,333) x 100] = [0,0007 x 100] =0,07- Acórdão TCU - Plenário nº 1513/2013.
A47: Subtotal (A+B+C+D+E) | D47: =SUM(D42:D46) -> 0.0903 | E47: Somatório de (A+B+C+D+E)
A48: F | B48: Incidência do submódulo 4.1 s/ o custo de reposição | C48: Subtotal | D48: =D14*D47 -> 0.0321 | E48: Total do percentual do submódulo 4.1 multiplicado pelo percentual do Custo de Reposição (36,80% x 12,19%)
D49: =D47+D48 -> 0.1224 | E49: Somatório de (A+B+C+D+E+F)

Sheet Encargos sociais (hidden)
A1: PLANILHA DE ENCARGOS SOCIAIS
A2: MÓDULO 4: ENCARGOS SOCIAIS E TRABALHISTAS
A3: Submódulo 4.1 - Encargos previdenciários e FGTS
A4: 4.1 | B4: Encargos previdenciários e FGTS | E4: % | F4: Memória de Cálculo | G4: Fundamento
A5: A | B5: INSS | E5: 0.2 | F5: - | G5: Art. 22, Inciso I, da Lei nº 8.212/91.
A6: B | B6: SESI ou SESC | E6: 0.015 | F6: - | G6: Art. 3º, Lei n.º 8.036/90.
A7: C | B7: SENAI ou SENAC | E7: 0.01 | F7: - | G7: Decreto n.º 2.318/86.
A8: D | B8: INCRA | E8: 0.002 | F8: - | G8: Lei n.º 7.787/89 e DL n.º 1.146/70.
A9: E | B9: Salário Educação | E9: 0.025 | F9: - | G9: Art. 3º, Inciso I, Decreto n.º 87.043/82.
A10: F | B10: FGTS | E10: 0.08 | F10: - | G10: Art. 15, Lei nº 8.030/90 e Art. 7º, III, CF.
A11: G | B11: Seguro Acidente de Trabalho/SAT/INSS ( 0,85 X2,00 ) | E11: 0.017 | F11: RAT X FAP | G11: Lei n.º 8.212/91 e Decreto 6.957/2009
A12: H | B12: SEBRAE | E12: 0.006 | F12: - | G12: Art. 8º, Lei n.º 8.029/90 e Lei n.º 8.154/90.
B13: Total | E13: =SUM(E5:E12) -> 0.355
A15: Submódulo 4.2 - 13º Salário
A16: 4.2 | B16: 13º Salário | E16: % | F16: Memória de Cálculo | G16: Fundamento
A17: A | B17: 13º Salário | E17: 0.0833 | F17: [(1/12)x100] = 8,333% | G17: Art. 7º, VIII, CF/88- Dec. 57.115/65.
B18: Subtotal | E18: =SUM(E17:E17) -> 0.0833
A19: B | B19: Incidência do Submódulo 4.1 sobre 13º Salário | E19: =E13*E18 -> 0.0296 | F19: (total submódulo 4.1 x 13º)
B20: Total | E20: =SUM(E18:E19) -> 0.1129
A22: Submódulo 4.3 - Afastamento Maternidade
A23: 4.3 | B23: Afastamento Maternidade | E23: % | F23: Memória de Cálculo | G23: Fundamento
A24: A | B24: Afastamento Maternidade | E24: 0.0002 | F24: {[(1/12x4)+(1/12x4)+1/3x1/12x4)]/12x0,0025}x100=0,02% | G24: - CCT SINDISERVIÇOS 2016
A25: B | B25: Incidência do Submódulo 4.1 sobre afastamento maternidade | E25: =E13*E24 -> 0.0001 | F25: (total submódulo 4.1 x 0,02%) | G25: - CCT SINDISERVIÇOS 2016
B26: Total | E26: =SUM(E24:E25) -> 0.0003
A28: Submódulo 4.4 - Provisão para Rescisão
A29: 4.4 | B29: Provisão para Rescisão | E29: % | F29: Memória de Cálculo | G29: Fundamento
A30: A | B30: Aviso prévio indenizado | E30: 0.0042 | F30: [(1/12)X5]=0,42% | G30: Art. 7º, XXI, CF/88, 477, 487 e 491 CLT. Estimativa de que 5% dos empregados serão substítuidos durante o ano.
A31: B | B31: Incidência do FGTS sobre aviso prévio indenizado | E31: =E10*E30 -> 0.0003 | F31: (8% X 0,42%) = 0,03% | G31: Leis nºs 8.036/90 e 9.491/97.
A32: C | B32: Multa do FGTS do aviso prévio indenizado | E32: 0.05 | G32: Conforme IN nº 002/2008
A33: D | B33: Aviso prévio trabalhado | E33: 0.0194 | F33: (7/30/12x0,25*100)=0,38% | G33: Idenização de 7 dias corridos devido ao empregado me caso de rescisão sem justo motivo e conceder aviso prévio, disposto no art. 488 da CLT, estima-se que 25% dos empregados sejam demitidos nessa situação.
A34: E | B34: Incidência do submódulo 4.1 sobre aviso prévio trabalhado | E34: =E13*E33 -> 0.0069 | F34: (35,94%*0,38%)=0,14%
A35: F | B35: Multa do FGTS do aviso prévio trabalhado | E35: 0 | F35: CCT 2016 | G35: CCT 2016 | J35: =(2/30/12*100) -> 0.5555555556
B36: Total | E36: =SUM(E30:E35) -> 0.0808
A38: Submódulo 4.5 - Custo de Reposição do Profissional Ausente
A39: 4.5 | B39: Composição do Custo de Reposição do Profissional Ausente | E39: % | F39: Memória de Cálculo | G39: Fundamento
A40: A | B40: Férias e Adicional de Férias | E40: 0.121 | G40: Conforme IN 002/2008
A41: B | B41: Ausencia por doença | E41: 0 | F41: (2,5/30/12)*100=0,69% | G41: O art. 131 inciso III da CLT, onera a empresa com até 15 ausencias do empregado por motivo de acidente ou doença atestada pelo INSS. Ficando a empresa contratada a providenciar as devidas substituições. Nesse caso estima 1,5 ausência.
A42: C | B42: Licença paternidade | E42: 0.0001 | F42: [(5/30)/12]X0,010X100=0,01 | G42: CCT 2016-
A43: D | B43: Ausências legais | E43: 0.0002 | F43: (1,5/30/12)*100=0,28% | G43: Art. 473 da CLT. Estimativa de 1,5 ausênia por ano.
A44: E | B44: Ausência por Acidente de trabalho | E44: 0.0002 | F44: {[(30/30)/12]x0,02X100)=0,02 | G44: Art 27 do dec.89312/84. art 131 CLT e MP654/2014 | J44: =(15/30/12*5%)*100 -> 0.2083333333
B45: Subtotal | E45: =SUM(E40:E44) -> 0.1215
A46: F | B46: Incidência do Submódulo 4.1 sobre o custo de reposição | E46: =E13*E45 -> 0.0431 | F46: (total submódulo 4.1 x subtotal submódulo 4.5)
B47: Total | E47: =SUM(E45:E46) -> 0.1646
A49: TOTAL DOS ENCARGOS SOCIAIS = 72,48 %
A50: 4 | B50: Módulo 4 - Encargos sociais e trabalhistas | E50: % | F50: Memória de Cálculo | G50: Fundamento
A51: 4.1 | B51: Encargos previdenciários e FGTS | E51: =E13 -> 0.355 | F51: Total dos encargos previdenciários e FGTS | G51: -
A52: 4.2 | B52: 13 º salário | E52: =E20 -> 0.1129 | F52: Total do 13º salário | G52: -
A53: 4.3 | B53: Afastamento maternidade | E53: =E26 -> 0.0003 | F53: Total do afastamento maternidade | G53: -
A54: 4.4 | B54: Custo de rescisão | E54: =E36 -> 0.0808 | F54: Total da provisão para rescisão | G54: -
A55: 4.5 | B55: Custo de reposição do profissional ausente | E55: =E47 -> 0.1646 | F55: Total da coposição do custo de reposição do profissional ausente | G55: -
A56: 4.6 | B56: Outros (especificar) | E56: 0 | G56: -
B57: Total | E57: =SUM(E51:E56) -> 0.7136 | G57: -
